Departmental Area,Entity,Payment Date,Expense Type,Expense Area,Supplier Name,Payment Reference,Invoice Distribution Amount,Description,Suplier Type,Expenditure Type
UK Statistics Family,Office for National Statistics,04/01/2021,Exp - Purchase Of Goods/Services - IT Contractual Services,Expansion Programme,Kainos,193690," 356,209.00 ",Information Management Services,Large,Programme Expenditure
UK Statistics Family,Office for National Statistics,04/01/2021,Exp - Purchase Of Goods/Services - Incentive Payments,Survey Management,Park Retail Ltd,193692," 39,719.68 ",Survey Response Incentive Vouchers,Large,Programme Expenditure
UK Statistics Family,Office for National Statistics,04/01/2021,Exp - Purchase Of Goods/Services - Incentive Payments,Survey Management,Park Retail Ltd,193692," 5,025.93 ",Survey Response Incentive Vouchers,Large,Programme Expenditure
UK Statistics Family,Office for National Statistics,04/01/2021,Exp - Purchase Of Goods/Services - Incentive Payments,Survey Management,Park Retail Ltd,193692," 2,408.03 ",Survey Response Incentive Vouchers,Large,Programme Expenditure
UK Statistics Family,Office for National Statistics,04/01/2021,Exp - Purchase Of Goods/Services - Incentive Payments,Survey Management,Park Retail Ltd,193692, 615.92 ,Survey Response Incentive Vouchers,Large,Programme Expenditure
UK Statistics Family,Office for National Statistics,04/01/2021,Major Works Over 25K,Property Newport,Vinci Construction UK Limited,193694," 112,431.50 ",Facilities Mangement Services,Large,Programme Expenditure
UK Statistics Family,Office for National Statistics,04/01/2021,Major Works Over 25K,Property Titchfield,Vinci Construction UK Limited,193694," 1,800.00 ",Facilities Mangement Services,Large,Programme Expenditure
UK Statistics Family,Office for National Statistics,04/01/2021,Major Works Over 25K,Property Titchfield,Vinci Construction UK Limited,193694," 2,400.00 ",Facilities Mangement Services,Large,Programme Expenditure
UK Statistics Family,Office for National Statistics,04/01/2021,Major Works Over 25K,Property Christchurch,Vinci Construction UK Limited,193694," 47,925.60 ",Facilities Mangement Services,Large,Programme Expenditure
UK Statistics Family,Office for National Statistics,04/01/2021,FM Contract Payments,FM Payments,Vinci Construction UK Limited,193694," 552,857.48 ",Facilities Mangement Services,Large,Programme Expenditure
UK Statistics Family,Office for National Statistics,04/01/2021,Surveys,Labour Market,University of Durham,193698," 134,437.61 ",Statistical Services,Large,Programme Expenditure
UK Statistics Family,Office for National Statistics,04/01/2021,IT (Owned) At Cost - Additions,IT Operations,Centerprise International Ltd,193708," 211,200.00 ",Computers and Peripherals,Large,Programme Expenditure
UK Statistics Family,Office for National Statistics,04/01/2021,Exp - Purchase Of Goods/Services - Contractors,Testing,Certes Computing Ltd,193712," 9,146.26 ",Information Management Services,SME,Programme Expenditure
UK Statistics Family,Office for National Statistics,04/01/2021,Exp - Purchase Of Goods/Services - Contractors,Security Advisory,Certes Computing Ltd,193712," 12,489.84 ",Information Management Services,SME,Programme Expenditure
UK Statistics Family,Office for National Statistics,04/01/2021,Exp - Purchase Of Goods/Services - Contractors,Security Advisory,Certes Computing Ltd,193712," 12,489.84 ",Information Management Services,SME,Programme Expenditure
UK Statistics Family,Office for National Statistics,04/01/2021,Exp - Purchase Of Goods/Services - Contractors,Security Advisory,Certes Computing Ltd,193712," 12,073.51 ",Information Management Services,SME,Programme Expenditure
UK Statistics Family,Office for National Statistics,04/01/2021,Exp - Purchase Of Goods/Services - Contractors,Tech Delivery Legacy Sp,Certes Computing Ltd,193712," 5,226.53 ",Information Management Services,SME,Programme Expenditure
UK Statistics Family,Office for National Statistics,04/01/2021,Exp - Purchase Of Goods/Services - Contractors,Tech Delivery Data As A Platform,Certes Computing Ltd,193712," 8,006.28 ",Information Management Services,SME,Programme Expenditure
UK Statistics Family,Office for National Statistics,04/01/2021,Exp - Purchase Of Goods/Services - Contractors,IT Applications,Certes Computing Ltd,193712,-719.93 ,Information Management Services,SME,Programme Expenditure
UK Statistics Family,Office for National Statistics,04/01/2021,Exp - Purchase Of Goods/Services - Contractors,Digital Delivery,Certes Computing Ltd,193712," 6,480.00 ",Information Management Services,SME,Programme Expenditure
UK Statistics Family,Office for National Statistics,04/01/2021,Exp - Purchase Of Goods/Services - Contractors,Digital Delivery,Certes Computing Ltd,193712," 22,737.00 ",Information Management Services,SME,Programme Expenditure
UK Statistics Family,Office for National Statistics,04/01/2021,Exp - Purchase Of Goods/Services - Contractors,Business Architecture,La International,193713," 40,152.37 ",Information Management Services,SME,Programme Expenditure
UK Statistics Family,Office for National Statistics,04/01/2021,Exp - Purchase Of Goods/Services - Contractors,Testing,La International,193713," 49,339.14 ",Information Management Services,SME,Programme Expenditure
UK Statistics Family,Office for National Statistics,04/01/2021,Exp - Purchase Of Goods/Services - Contractors,Sustainability And Inequalities,La International,193713," 5,682.42 ",Information Management Services,SME,Programme Expenditure
UK Statistics Family,Office for National Statistics,04/01/2021,Exp - Purchase Of Goods/Services - Contractors,Business Architecture Transformation And Statistical Strategy,La International,193713," 2,050.46 ",Information Management Services,SME,Programme Expenditure
UK Statistics Family,Office for National Statistics,04/01/2021,Exp - Short-Term Contract & Agency Staff - Full Cost,Recruitment ,La International,193713,-11.93 ,Information Management Services,SME,Programme Expenditure
UK Statistics Family,Office for National Statistics,04/01/2021,Exp - Purchase Of Goods/Services - Contractors,Security Advisory,La International,193713," 6,941.70 ",Information Management Services,SME,Programme Expenditure
UK Statistics Family,Office for National Statistics,04/01/2021,Exp - Purchase Of Goods/Services - Contractors,Data Architecture,La International,193713," 13,872.62 ",Information Management Services,SME,Programme Expenditure
UK Statistics Family,Office for National Statistics,04/01/2021,Exp - Purchase Of Goods/Services - Contractors,Data Architecture,La International,193713," 7,048.44 ",Information Management Services,SME,Programme Expenditure
UK Statistics Family,Office for National Statistics,04/01/2021,Exp - Purchase Of Goods/Services - Contractors,Data Architecture,La International,193713," 32,166.66 ",Information Management Services,SME,Programme Expenditure
UK Statistics Family,Office for National Statistics,04/01/2021,Exp - Purchase Of Goods/Services - Contractors,Tech Delivery Legacy Sp,La International,193713,"-4,485.42 ",Information Management Services,SME,Programme Expenditure
UK Statistics Family,Office for National Statistics,04/01/2021,Exp - Purchase Of Goods/Services - Contractors,Tech Delivery Data As A Platform,La International,193713," 9,611.64 ",Information Management Services,SME,Programme Expenditure
UK Statistics Family,Office for National Statistics,04/01/2021,Exp - Purchase Of Goods/Services - Contractors,IT Applications,La International,193713," 21,799.37 ",Information Management Services,SME,Programme Expenditure
UK Statistics Family,Office for National Statistics,04/01/2021,Exp - Purchase Of Goods/Services - Contractors,Digital Delivery,La International,193713," 7,176.60 ",Information Management Services,SME,Programme Expenditure
UK Statistics Family,Office for National Statistics,04/01/2021,Exp - Purchase Of Goods/Services - Contractors,Digital Delivery,La International,193713," 13,635.54 ",Information Management Services,SME,Programme Expenditure
UK Statistics Family,Office for National Statistics,04/01/2021,Exp - Short-Term Contract & Agency Staff - Full Cost,Social Survey Transformation Titchfield,La International,193713, 813.50 ,Information Management Services,SME,Programme Expenditure
UK Statistics Family,Office for National Statistics,04/01/2021,EXP - PURCHASE OF GOODS/SERVICES -  NON IT CONTRACTUAL PAYMENTS,Covid Infection Survey,HH Associates Ltd,193730," 34,477.69 ",Print and Post Services,SME,Programme Expenditure
UK Statistics Family,Office for National Statistics,04/01/2021,EXP - PURCHASE OF GOODS/SERVICES -  NON IT CONTRACTUAL PAYMENTS,Census CCS Data Collection,Adecco UK Limited,193731," 1,145,208.00 ",Census People Services Contractual,SME,Programme Expenditure
UK Statistics Family,Office for National Statistics,04/01/2021,EXP - PURCHASE OF GOODS/SERVICES -  NON IT CONTRACTUAL PAYMENTS,Census CCS Data Collection,Granby Marketing Services Ltd,193732," 44,569.62 ",Stoarage and Distribution Services,Large,Programme Expenditure
UK Statistics Family,Office for National Statistics,04/01/2021,Survey Incentive Vouchers,Census CCS Data Collection,Banner Group Ltd,193738," 26,640.00 ",Stationery,SME,Programme Expenditure
UK Statistics Family,Office for National Statistics,04/01/2021,Other Goods And Services,Census CCS Data Collection,Banner Group Ltd,193738," 152,121.60 ",Stationery,SME,Programme Expenditure
UK Statistics Family,Office for National Statistics,04/01/2021,EXP - PURCHASE OF GOODS/SERVICES -  NON IT CONTRACTUAL PAYMENTS,Census CCS Data Collection,Banner Group Ltd,193738," 345,492.00 ",Stationery,SME,Programme Expenditure
UK Statistics Family,Office for National Statistics,04/01/2021,"ICT Outsourcing, Maintenance And Support",Senior Management Team Design,Totalmobile Ltd,193743," 47,025.00 ",Information Management Services,SME,Programme Expenditure
UK Statistics Family,Office for National Statistics,04/01/2021,Recovery Of Secondee Costs,UKSA,Public Health Scotland,193748," 34,322.00 ",Recruitment,Large,Programme Expenditure
UK Statistics Family,Office for National Statistics,05/01/2021,Exp - Purchase Of Goods/Services - Contractors,Programme Delivery,Certes Computing Ltd,193834," 11,848.81 ",Information Management Services,SME,Programme Expenditure
UK Statistics Family,Office for National Statistics,05/01/2021,Exp - Purchase Of Goods/Services - Contractors,Business Architecture Transformation And Statistical Strategy,Certes Computing Ltd,193834," 10,836.72 ",Information Management Services,SME,Programme Expenditure
UK Statistics Family,Office for National Statistics,05/01/2021,Exp - Purchase Of Goods/Services - Contractors,Security Advisory,Certes Computing Ltd,193834," 10,407.75 ",Information Management Services,SME,Programme Expenditure
UK Statistics Family,Office for National Statistics,06/01/2021,Telecoms,IT Operations,Bt Global Services,193846," 27,072.19 ",Telephony Charges,Large,Programme Expenditure
UK Statistics Family,Office for National Statistics,06/01/2021,Telecoms,IT Operations,Bt Global Services,193847," 49,232.58 ",Telephony Charges,Large,Programme Expenditure
UK Statistics Family,Office for National Statistics,06/01/2021,Exp - Purchase Of Goods/Services - Contractors,Testing,La International,193851," 11,565.88 ",Information Management Services,SME,Programme Expenditure
UK Statistics Family,Office for National Statistics,06/01/2021,Exp - Purchase Of Goods/Services - Contractors,Data Architecture,La International,193851," 2,870.64 ",Information Management Services,SME,Programme Expenditure
UK Statistics Family,Office for National Statistics,06/01/2021,Exp - Purchase Of Goods/Services - Contractors,Data Architecture,La International,193851," 2,819.38 ",Information Management Services,SME,Programme Expenditure
UK Statistics Family,Office for National Statistics,06/01/2021,Exp - Purchase Of Goods/Services - Contractors,Data Architecture,La International,193851," 11,328.82 ",Information Management Services,SME,Programme Expenditure
UK Statistics Family,Office for National Statistics,06/01/2021,Exp - Purchase Of Goods/Services - Contractors,Tech Delivery Legacy Sp,La International,193851," 12,559.18 ",Information Management Services,SME,Programme Expenditure
UK Statistics Family,Office for National Statistics,06/01/2021,Exp - Purchase Of Goods/Services - Contractors,IT Applications,La International,193851," 14,366.16 ",Information Management Services,SME,Programme Expenditure
UK Statistics Family,Office for National Statistics,06/01/2021,Exp - Purchase Of Goods/Services - Contractors,Digital Delivery,La International,193851," 13,456.26 ",Information Management Services,SME,Programme Expenditure
UK Statistics Family,Office for National Statistics,06/01/2021,Exp - Purchase Of Goods/Services - Contractors,Digital Delivery,La International,193851," 12,174.74 ",Information Management Services,SME,Programme Expenditure
UK Statistics Family,Office for National Statistics,06/01/2021,Exp - Purchase Of Goods/Services - Contractors,Digital Delivery,La International,193851," 13,840.63 ",Information Management Services,SME,Programme Expenditure
UK Statistics Family,Office for National Statistics,06/01/2021,Exp - Purchase Of Goods/Services - Contractors,Business Architecture,LA FOSSE ASSOCIATES LIMITED,193858," 24,664.00 ",Information Management Services,Large,Programme Expenditure
UK Statistics Family,Office for National Statistics,06/01/2021,Exp - Purchase Of Goods/Services - Contractors,Business Architecture,LA FOSSE ASSOCIATES LIMITED,193858," 4,400.00 ",Information Management Services,Large,Programme Expenditure
UK Statistics Family,Office for National Statistics,06/01/2021,Exp - Purchase Of Goods/Services - Contractors,Consultancy Management,LA FOSSE ASSOCIATES LIMITED,193858," 33,269.94 ",Information Management Services,Large,Programme Expenditure
UK Statistics Family,Office for National Statistics,06/01/2021,Exp - Purchase Of Goods/Services - Contractors,Programme Support,LA FOSSE ASSOCIATES LIMITED,193858," 3,000.00 ",Information Management Services,Large,Programme Expenditure
UK Statistics Family,Office for National Statistics,06/01/2021,Exp - Purchase Of Goods/Services - Contractors,INTEGRATED DATA STRATEGY AND DELIVERY,LA FOSSE ASSOCIATES LIMITED,193858, 690.00 ,Information Management Services,Large,Programme Expenditure
UK Statistics Family,Office for National Statistics,06/01/2021,Exp - Purchase Of Goods/Services - Contractors,Data Architecture,LA FOSSE ASSOCIATES LIMITED,193858," 4,050.00 ",Information Management Services,Large,Programme Expenditure
UK Statistics Family,Office for National Statistics,06/01/2021,Exp - Purchase Of Goods/Services - Contractors,Tech Delivery Legacy Sp,LA FOSSE ASSOCIATES LIMITED,193858," 3,600.00 ",Information Management Services,Large,Programme Expenditure
UK Statistics Family,Office for National Statistics,06/01/2021,Exp - Purchase Of Goods/Services - Contractors,Business Statistics Transformation,LA FOSSE ASSOCIATES LIMITED,193858," 5,940.00 ",Information Management Services,Large,Programme Expenditure
UK Statistics Family,Office for National Statistics,06/01/2021,Other Goods And Services,Overseas Development,"Foreign, Commonwealth & Development Office",193861," 63,784.25 ",Subscription and Support Services,Large,Programme Expenditure
UK Statistics Family,Office for National Statistics,07/01/2021,Training & Development,Learning And Capability,Sussex Partnership Nhs Foundation Trust,193978," 31,350.00 ",Training and Educational Services,Large,Programme Expenditure
UK Statistics Family,Office for National Statistics,07/01/2021,Exp - Purchase Of Goods/Services - IT Contractual Services,Strategy And Architecture,Empiric Solutions Limited,193979," 35,880.00 ",Information Management Services,Large,Programme Expenditure
UK Statistics Family,Office for National Statistics,07/01/2021,Exp - Purchase Of Goods/Services - Contractors,Senior Management,Certes Computing Ltd,193984," 8,454.60 ",Information Management Services,SME,Programme Expenditure
UK Statistics Family,Office for National Statistics,07/01/2021,Exp - Purchase Of Goods/Services - Contractors,Strategy And Architecture,Certes Computing Ltd,193984," 14,603.40 ",Information Management Services,SME,Programme Expenditure
UK Statistics Family,Office for National Statistics,07/01/2021,Exp - Purchase Of Goods/Services - Contractors,IT Applications,Certes Computing Ltd,193984," 14,398.56 ",Information Management Services,SME,Programme Expenditure
UK Statistics Family,Office for National Statistics,08/01/2021,Exp - Purchase Of Goods/Services - Contractors,Business Architecture,Talent International,194009," 9,240.00 ",Information Management Services,SME,Programme Expenditure
UK Statistics Family,Office for National Statistics,08/01/2021,Exp - Purchase Of Goods/Services - Contractors,Consultancy Management,Talent International,194009," 9,153.00 ",Information Management Services,SME,Programme Expenditure
UK Statistics Family,Office for National Statistics,08/01/2021,Exp - Purchase Of Goods/Services - Contractors,Researcher Support And Data Access ,Talent International,194009," 14,040.00 ",Information Management Services,SME,Programme Expenditure
UK Statistics Family,Office for National Statistics,08/01/2021,Exp - Purchase Of Goods/Services - Contractors,Data Architecture,Talent International,194009," 51,648.00 ",Information Management Services,SME,Programme Expenditure
UK Statistics Family,Office for National Statistics,08/01/2021,Exp - Purchase Of Goods/Services - Contractors,Tech Delivery Legacy Sp,Talent International,194009," 13,319.78 ",Information Management Services,SME,Programme Expenditure
UK Statistics Family,Office for National Statistics,08/01/2021,Exp - Purchase Of Goods/Services - Contractors,Business Architecture,Parity Resources Limited,194010," 2,549.40 ",Information Management Services,Large,Programme Expenditure
UK Statistics Family,Office for National Statistics,08/01/2021,Exp - Purchase Of Goods/Services - Contractors,Business Architecture,Parity Resources Limited,194010," 8,637.51 ",Information Management Services,Large,Programme Expenditure
UK Statistics Family,Office for National Statistics,08/01/2021,Exp - Purchase Of Goods/Services - Contractors,Testing,Parity Resources Limited,194010," 12,960.00 ",Information Management Services,Large,Programme Expenditure
UK Statistics Family,Office for National Statistics,08/01/2021,Exp - Purchase Of Goods/Services - Contractors,Programme Support,Parity Resources Limited,194010," 3,592.56 ",Information Management Services,Large,Programme Expenditure
UK Statistics Family,Office for National Statistics,08/01/2021,Exp - Purchase Of Goods/Services - Contractors,Covid Infection Survey,Parity Resources Limited,194010," 4,800.00 ",Information Management Services,Large,Programme Expenditure
UK Statistics Family,Office for National Statistics,08/01/2021,Exp - Purchase Of Goods/Services - Contractors,Covid Infection Survey,Parity Resources Limited,194010," 1,655.25 ",Information Management Services,Large,Programme Expenditure
UK Statistics Family,Office for National Statistics,08/01/2021,Exp - Purchase Of Goods/Services - Contractors,Analysis Microdata And Engagement,Parity Resources Limited,194010, 740.11 ,Information Management Services,Large,Programme Expenditure
UK Statistics Family,Office for National Statistics,08/01/2021,Exp - Short-Term Contract & Agency Staff - Full Cost,Recruitment ,Parity Resources Limited,194010," 1,374.23 ",Information Management Services,Large,Programme Expenditure
UK Statistics Family,Office for National Statistics,08/01/2021,Exp - Short-Term Contract & Agency Staff - Full Cost,Data Architecture,Parity Resources Limited,194010," 2,178.00 ",Information Management Services,Large,Programme Expenditure
UK Statistics Family,Office for National Statistics,08/01/2021,Exp - Purchase Of Goods/Services - Contractors,Data Architecture,Parity Resources Limited,194010," 6,466.61 ",Information Management Services,Large,Programme Expenditure
UK Statistics Family,Office for National Statistics,11/01/2021,Surveys,Social Surveys Division,Natcen Social Research,194140," 51,006.32 ",Statistical Services,Large,Programme Expenditure
UK Statistics Family,Office for National Statistics,11/01/2021,Surveys,Business Outputs And Developments,Iff Research,194146," 81,891.60 ",Statistical Services,Large,Programme Expenditure
UK Statistics Family,Office for National Statistics,11/01/2021,Other Professional Services,People Solutions,Government Legal Department,194148," 25,180.20 ",Legal Services,Large,Programme Expenditure
UK Statistics Family,Office for National Statistics,12/01/2021,Exp - Purchase Of Goods/Services - IT Contractual Services,Tech Delivery Legacy Sp,Ibm United Kingdom Ltd,194155," 53,402.51 ",Information Management Services,Large,Programme Expenditure
UK Statistics Family,Office for National Statistics,12/01/2021,End User Software And Hardware,IT Operations,Bytes Software Services Ltd,194158," 99,836.82 ",Software Licenses,Large,Programme Expenditure
UK Statistics Family,Office for National Statistics,12/01/2021,Stationery,Lodgecard,Royal Bank of Scotland,194159," 1,789.95 ",Multiple Procurement Card Purchases  - Stationery ,Large,Programme Expenditure
UK Statistics Family,Office for National Statistics,12/01/2021,Other Goods And Services,GPC,Royal Bank of Scotland,194159," 25,971.87 ",Multiple Procurement Card Purchases - other goods/services  ,Large,Programme Expenditure
UK Statistics Family,Office for National Statistics,12/01/2021,Travel And Subsistence,Car Hire,Royal Bank of Scotland,194159," 1,323.92 ",Multiple Procurement Card Purchases - Vehicle Hire  ,Large,Programme Expenditure
UK Statistics Family,Office for National Statistics,12/01/2021,Recovery Of Secondee Costs,FAST STREAM RECHARGES - CABINET OFFICE,Cabinet Office,194160," 134,826.00 ",Fast Stream Recruitment,Large,Programme Expenditure
UK Statistics Family,Office for National Statistics,12/01/2021,EXP - PURCHASE OF GOODS/SERVICES -  NON IT CONTRACTUAL PAYMENTS,Covid Infection Survey,HH Associates Ltd,194162," 230,963.67 ",Print and Post Services,SME,Programme Expenditure
UK Statistics Family,Office for National Statistics,12/01/2021,Exp - Purchase Of Goods And Services Consultants,Portfolio Delivery,Parity Resources Limited,194164," 9,160.88 ",Information Management Services,Large,Programme Expenditure
UK Statistics Family,Office for National Statistics,12/01/2021,Exp - Purchase Of Goods/Services - Contractors,Researcher Support And Data Access ,Parity Resources Limited,194164, 601.64 ,Information Management Services,Large,Programme Expenditure
UK Statistics Family,Office for National Statistics,12/01/2021,Exp - Purchase Of Goods/Services - Contractors,Researcher Support And Data Access ,Parity Resources Limited,194164," 5,414.80 ",Information Management Services,Large,Programme Expenditure
UK Statistics Family,Office for National Statistics,12/01/2021,Exp - Purchase Of Goods/Services - Contractors,CDIO UNGP,Parity Resources Limited,194164," 10,059.00 ",Information Management Services,Large,Programme Expenditure
UK Statistics Family,Office for National Statistics,12/01/2021,Exp - Purchase Of Goods/Services - Contractors,Digital Delivery,Parity Resources Limited,194164," 13,636.22 ",Information Management Services,Large,Programme Expenditure
UK Statistics Family,Office for National Statistics,12/01/2021,Exp - Purchase Of Goods/Services - Contractors,Digital Delivery,Parity Resources Limited,194164," 13,035.90 ",Information Management Services,Large,Programme Expenditure
UK Statistics Family,Office for National Statistics,12/01/2021,Exp - Purchase Of Goods/Services - Contractors,Digital Delivery,Parity Resources Limited,194164," 13,636.22 ",Information Management Services,Large,Programme Expenditure
UK Statistics Family,Office for National Statistics,12/01/2021,Exp - Purchase Of Goods/Services - Contractors,Digital Delivery,Parity Resources Limited,194164," 13,636.22 ",Information Management Services,Large,Programme Expenditure
UK Statistics Family,Office for National Statistics,12/01/2021,Exp - Purchase Of Goods/Services - IT Contractual Services,Digital Delivery,Parity Resources Limited,194164," 10,380.96 ",Information Management Services,Large,Programme Expenditure
UK Statistics Family,Office for National Statistics,12/01/2021,Plant & Machinery At Cost - Additions,Property Services,Canon UK Ltd,194165," 248,402.73 ",Reprographic Equipment,Large,Programme Expenditure
UK Statistics Family,Office for National Statistics,12/01/2021,Exp - Purchase Of Goods/Services - Contractors,Data Architecture,SmartSourcing Ltd,194169," 32,208.00 ",Information Management Services,SME,Programme Expenditure
UK Statistics Family,Office for National Statistics,12/01/2021,Exp - Purchase Of Goods/Services - IT Contractual Services,CLOUD ARCHITECTURE,SmartSourcing Ltd,194169," 12,946.56 ",Information Management Services,SME,Programme Expenditure
UK Statistics Family,Office for National Statistics,12/01/2021,EXP - PURCHASE OF GOODS/SERVICES -  NON IT CONTRACTUAL PAYMENTS,Data Collection Service,M&C Saatchi UK Ltd,194170," 316,164.70 ",Marketing Services,Large,Programme Expenditure
UK Statistics Family,Office for National Statistics,13/01/2021,Telecoms,IT Operations,Crown Hosting Data Centres Limited,194172," 2,580.00 ",Information Management Services,SME,Programme Expenditure
UK Statistics Family,Office for National Statistics,13/01/2021,Hosting,IT Operations,Crown Hosting Data Centres Limited,194172," 87,921.48 ",Information Management Services,SME,Programme Expenditure
UK Statistics Family,Office for National Statistics,13/01/2021,Exp - Purchase Of Goods/Services - IT Contractual Services,International Trade And Transactions,Mango Solutions,194173," 11,424.00 ",Information Management Services,SME,Programme Expenditure
UK Statistics Family,Office for National Statistics,13/01/2021,Exp - Purchase Of Goods/Services - IT Contractual Services,International Trade And Transactions,Mango Solutions,194173," 37,837.92 ",Information Management Services,SME,Programme Expenditure
UK Statistics Family,Office for National Statistics,13/01/2021,Exp - Purchase Of Goods/Services - Contractors,Testing,Concept Information Technology Ltd T/A Concept Resourcing,194176," 5,294.16 ",Information Management Services,Large,Programme Expenditure
UK Statistics Family,Office for National Statistics,13/01/2021,Exp - Purchase Of Goods/Services - Contractors,Data Architecture,Concept Information Technology Ltd T/A Concept Resourcing,194176," 15,576.00 ",Information Management Services,Large,Programme Expenditure
UK Statistics Family,Office for National Statistics,13/01/2021,Exp - Purchase Of Goods/Services - IT Contractual Services,Tech Delivery Legacy Sp,Concept Information Technology Ltd T/A Concept Resourcing,194176," 12,000.00 ",Information Management Services,Large,Programme Expenditure
UK Statistics Family,Office for National Statistics,13/01/2021,Exp - Purchase Of Goods/Services - IT Contractual Services,Tech Delivery Data As A Platform,Concept Information Technology Ltd T/A Concept Resourcing,194176," 3,600.00 ",Information Management Services,Large,Programme Expenditure
UK Statistics Family,Office for National Statistics,13/01/2021,Exp - Short-Term Contract & Agency Staff - Full Cost,Interviewer Management TU,Concept Information Technology Ltd T/A Concept Resourcing,194176," 1,941.31 ",Information Management Services,Large,Programme Expenditure
UK Statistics Family,Office for National Statistics,13/01/2021,Exp - Short-Term Contract & Agency Staff - Full Cost,Prices Division,Concept Information Technology Ltd T/A Concept Resourcing,194176," 3,222.61 ",Information Management Services,Large,Programme Expenditure
UK Statistics Family,Office for National Statistics,13/01/2021,Exp - Purchase Of Goods/Services - IT Contractual Services,Tech Delivery Legacy Sp,Ibm United Kingdom Ltd,194178," 31,975.98 ",Information Management Services,Large,Programme Expenditure
UK Statistics Family,Office for National Statistics,13/01/2021,Exp - Purchase Of Goods/Services - Contractors,Testing,La International,194182," 1,922.33 ",Information Management Services,SME,Programme Expenditure
UK Statistics Family,Office for National Statistics,13/01/2021,Exp - Purchase Of Goods/Services - Contractors,Sustainability And Inequalities,La International,194182," 2,525.52 ",Information Management Services,SME,Programme Expenditure
UK Statistics Family,Office for National Statistics,13/01/2021,Exp - Purchase Of Goods/Services - Contractors,Data Architecture,La International,194182, 704.84 ,Information Management Services,SME,Programme Expenditure
UK Statistics Family,Office for National Statistics,13/01/2021,Exp - Purchase Of Goods/Services - Contractors,Data Architecture,La International,194182," 6,343.63 ",Information Management Services,SME,Programme Expenditure
UK Statistics Family,Office for National Statistics,13/01/2021,Exp - Purchase Of Goods/Services - Contractors,IT Applications,La International,194182," 10,844.30 ",Information Management Services,SME,Programme Expenditure
UK Statistics Family,Office for National Statistics,13/01/2021,Exp - Purchase Of Goods/Services - Contractors,Digital Delivery,La International,194182," 5,741.28 ",Information Management Services,SME,Programme Expenditure
UK Statistics Family,Office for National Statistics,13/01/2021,Exp - Purchase Of Goods/Services - Contractors,Digital Delivery,La International,194182," 21,529.80 ",Information Management Services,SME,Programme Expenditure
UK Statistics Family,Office for National Statistics,13/01/2021,Exp - Purchase Of Goods/Services - Contractors,Testing,Certes Computing Ltd,194185," 11,183.11 ",Information Management Services,SME,Programme Expenditure
UK Statistics Family,Office for National Statistics,13/01/2021,Exp - Purchase Of Goods/Services - Contractors,Security Advisory,Certes Computing Ltd,194185," 13,450.58 ",Information Management Services,SME,Programme Expenditure
UK Statistics Family,Office for National Statistics,13/01/2021,Exp - Purchase Of Goods/Services - Contractors,Data Architecture,Certes Computing Ltd,194185," 25,557.44 ",Information Management Services,SME,Programme Expenditure
UK Statistics Family,Office for National Statistics,13/01/2021,Exp - Purchase Of Goods/Services - Contractors,Data Architecture,Certes Computing Ltd,194185," 15,333.68 ",Information Management Services,SME,Programme Expenditure
UK Statistics Family,Office for National Statistics,13/01/2021,Exp - Purchase Of Goods/Services - Contractors,Strategy And Architecture,Certes Computing Ltd,194185," 16,909.20 ",Information Management Services,SME,Programme Expenditure
UK Statistics Family,Office for National Statistics,13/01/2021,Exp - Purchase Of Goods/Services - Contractors,Tech Delivery Legacy Sp,Certes Computing Ltd,194185," 13,386.56 ",Information Management Services,SME,Programme Expenditure
UK Statistics Family,Office for National Statistics,13/01/2021,Exp - Purchase Of Goods/Services - Contractors,Tech Delivery Legacy Sp,Certes Computing Ltd,194185," 23,397.66 ",Information Management Services,SME,Programme Expenditure
UK Statistics Family,Office for National Statistics,13/01/2021,Exp - Purchase Of Goods/Services - Contractors,Tech Delivery Legacy Sp,Certes Computing Ltd,194185," 5,226.53 ",Information Management Services,SME,Programme Expenditure
UK Statistics Family,Office for National Statistics,13/01/2021,Exp - Purchase Of Goods/Services - Contractors,Tech Delivery Data As A Platform,Certes Computing Ltd,194185," 2,690.11 ",Information Management Services,SME,Programme Expenditure
UK Statistics Family,Office for National Statistics,13/01/2021,Exp - Purchase Of Goods/Services - Contractors,Tech Delivery Data As A Platform,Certes Computing Ltd,194185," 4,003.14 ",Information Management Services,SME,Programme Expenditure
UK Statistics Family,Office for National Statistics,13/01/2021,Exp - Purchase Of Goods/Services - Contractors,IT Applications,Certes Computing Ltd,194185," 13,386.56 ",Information Management Services,SME,Programme Expenditure
UK Statistics Family,Office for National Statistics,13/01/2021,Exp - Purchase Of Goods/Services - Contractors,Digital Delivery,Certes Computing Ltd,194185," 2,880.00 ",Information Management Services,SME,Programme Expenditure
UK Statistics Family,Office for National Statistics,13/01/2021,Exp - Purchase Of Goods/Services - Contractors,Digital Delivery,Certes Computing Ltd,194185," 13,386.56 ",Information Management Services,SME,Programme Expenditure
UK Statistics Family,Office for National Statistics,13/01/2021,Exp - Purchase Of Goods/Services - Contractors,Digital Delivery,Certes Computing Ltd,194185," 10,760.40 ",Information Management Services,SME,Programme Expenditure
UK Statistics Family,Office for National Statistics,13/01/2021,Exp - Purchase Of Goods/Services - Contractors,Digital Delivery,Certes Computing Ltd,194185," 11,977.45 ",Information Management Services,SME,Programme Expenditure
UK Statistics Family,Office for National Statistics,13/01/2021,Exp - Purchase Of Goods And Services Consultants,Consultancy Management,Deloitte,194186," 173,095.20 ",Consultancy,Large,Programme Expenditure
UK Statistics Family,Office for National Statistics,13/01/2021,Other Goods And Services,Recruitment ,Cabinet Office,194191, 688.80 ,Fast Stream Recruitment,Large,Programme Expenditure
UK Statistics Family,Office for National Statistics,13/01/2021,Other Goods And Services,Data Science Campus,Cabinet Office,194191," 12,735.00 ",Fast Stream Recruitment,Large,Programme Expenditure
UK Statistics Family,Office for National Statistics,13/01/2021,Recovery Of Secondee Costs,FAST STREAM RECHARGES - CABINET OFFICE,Cabinet Office,194191," 410,502.00 ",Fast Stream Recruitment,Large,Programme Expenditure
UK Statistics Family,Office for National Statistics,13/01/2021,Exp - Purchase Of Goods/Services - Contractors,Business Architecture,Malikshaw Interim & Executive,194192," 7,273.45 ",Information Management Services,SME,Programme Expenditure
UK Statistics Family,Office for National Statistics,13/01/2021,Exp - Purchase Of Goods/Services - Contractors,Programme Support,Malikshaw Interim & Executive,194192," 9,367.23 ",Information Management Services,SME,Programme Expenditure
UK Statistics Family,Office for National Statistics,13/01/2021,Exp - Short-Term Contract & Agency Staff - Full Cost,International Trade And Transactions,Malikshaw Interim & Executive,194192," 9,110.70 ",Information Management Services,SME,Programme Expenditure
UK Statistics Family,Office for National Statistics,13/01/2021,Exp - Purchase Of Goods/Services - Contractors,Data Architecture,Malikshaw Interim & Executive,194192," 29,419.69 ",Information Management Services,SME,Programme Expenditure
UK Statistics Family,Office for National Statistics,13/01/2021,Exp - Purchase Of Goods/Services - Contractors,Strategy And Architecture,Malikshaw Interim & Executive,194192," 12,376.37 ",Information Management Services,SME,Programme Expenditure
UK Statistics Family,Office for National Statistics,13/01/2021,Exp - Purchase Of Goods/Services - Contractors,Tech Delivery Legacy Sp,Malikshaw Interim & Executive,194192," 14,439.10 ",Information Management Services,SME,Programme Expenditure
UK Statistics Family,Office for National Statistics,13/01/2021,Exp - Purchase Of Goods/Services - Contractors,Tech Delivery Legacy Sp,Malikshaw Interim & Executive,194192," 15,120.00 ",Information Management Services,SME,Programme Expenditure
UK Statistics Family,Office for National Statistics,13/01/2021,Exp - Purchase Of Goods/Services - Contractors,Data Science Campus,Malikshaw Interim & Executive,194192," 10,302.00 ",Information Management Services,SME,Programme Expenditure
UK Statistics Family,Office for National Statistics,13/01/2021,Exp - Short-Term Contract & Agency Staff - Full Cost,Data As A Service,Malikshaw Interim & Executive,194192," 5,850.00 ",Information Management Services,SME,Programme Expenditure
UK Statistics Family,Office for National Statistics,13/01/2021,Exp - Short-Term Contract & Agency Staff - Full Cost,Stakeholder Engagement And Comms,Parity Resources Limited,194193," 2,597.76 ",Information Management Services,Large,Programme Expenditure
UK Statistics Family,Office for National Statistics,13/01/2021,Exp - Purchase Of Goods/Services - Contractors,Stakeholder Engagement And Comms,Parity Resources Limited,194193," 2,986.34 ",Information Management Services,Large,Programme Expenditure
UK Statistics Family,Office for National Statistics,13/01/2021,Exp - Purchase Of Goods/Services - Contractors,Testing,Parity Resources Limited,194193," 12,527.64 ",Information Management Services,Large,Programme Expenditure
UK Statistics Family,Office for National Statistics,13/01/2021,Exp - Purchase Of Goods/Services - Contractors,Programme Delivery,Parity Resources Limited,194193," 21,530.52 ",Information Management Services,Large,Programme Expenditure
UK Statistics Family,Office for National Statistics,13/01/2021,Exp - Purchase Of Goods/Services - Contractors,Programme Delivery,Parity Resources Limited,194193," 4,229.28 ",Information Management Services,Large,Programme Expenditure
UK Statistics Family,Office for National Statistics,13/01/2021,Exp - Purchase Of Goods/Services - Contractors,Consultancy Management,Parity Resources Limited,194193," 8,700.00 ",Information Management Services,Large,Programme Expenditure
UK Statistics Family,Office for National Statistics,13/01/2021,Exp - Purchase Of Goods/Services - Contractors,Digital Publishing,Parity Resources Limited,194193," 12,240.00 ",Information Management Services,Large,Programme Expenditure
UK Statistics Family,Office for National Statistics,13/01/2021,Exp - Short-Term Contract & Agency Staff - Full Cost,International Trade And Transactions,Parity Resources Limited,194193," 3,402.00 ",Information Management Services,Large,Programme Expenditure
UK Statistics Family,Office for National Statistics,13/01/2021,Exp - Purchase Of Goods/Services - Contractors,International Trade And Transactions,Parity Resources Limited,194193," 25,027.20 ",Information Management Services,Large,Programme Expenditure
UK Statistics Family,Office for National Statistics,13/01/2021,Exp - Short-Term Contract & Agency Staff - Full Cost,Productivity Research And Professional Development,Parity Resources Limited,194193," 3,598.98 ",Information Management Services,Large,Programme Expenditure
UK Statistics Family,Office for National Statistics,13/01/2021,Exp - Purchase Of Goods/Services - Contractors,Analysis Microdata And Engagement,Parity Resources Limited,194193," 1,281.60 ",Information Management Services,Large,Programme Expenditure
UK Statistics Family,Office for National Statistics,13/01/2021,Exp - Short-Term Contract & Agency Staff - Full Cost,Recruitment ,Parity Resources Limited,194193," 10,695.96 ",Information Management Services,Large,Programme Expenditure
UK Statistics Family,Office for National Statistics,13/01/2021,Exp - Purchase Of Goods/Services - Contractors,Security Advisory,Parity Resources Limited,194193," 22,299.84 ",Information Management Services,Large,Programme Expenditure
UK Statistics Family,Office for National Statistics,13/01/2021,Exp - Purchase Of Goods/Services - Contractors,Strategy And Architecture,Parity Resources Limited,194193," 9,804.24 ",Information Management Services,Large,Programme Expenditure
UK Statistics Family,Office for National Statistics,13/01/2021,Exp - Purchase Of Goods/Services - Contractors,IT Applications,Parity Resources Limited,194193," 17,788.82 ",Information Management Services,Large,Programme Expenditure
UK Statistics Family,Office for National Statistics,13/01/2021,Exp - Purchase Of Goods/Services - Contractors,Digital Delivery,Parity Resources Limited,194193," 13,636.22 ",Information Management Services,Large,Programme Expenditure
UK Statistics Family,Office for National Statistics,13/01/2021,Exp - Short-Term Contract & Agency Staff - Full Cost,Public Sector And Households,Parity Resources Limited,194193," 1,312.42 ",Information Management Services,Large,Programme Expenditure
UK Statistics Family,Office for National Statistics,13/01/2021,Exp - Purchase Of Goods/Services - Contractors,Data As A Service,Parity Resources Limited,194193," 10,406.59 ",Information Management Services,Large,Programme Expenditure
UK Statistics Family,Office for National Statistics,13/01/2021,Exp - Purchase Of Goods/Services - Contractors,Business Statistics Transformation,Parity Resources Limited,194193," 8,455.36 ",Information Management Services,Large,Programme Expenditure
UK Statistics Family,Office for National Statistics,13/01/2021,Non IT Maintenance And Hire,Digital Delivery,Hewlett Packard International Bank DAC,194194," 37,076.41 ",Leasing of Devices,SME,Programme Expenditure
UK Statistics Family,Office for National Statistics,13/01/2021,"ICT Outsourcing, Maintenance And Support",Researcher Support And Data Access ,Equiniti-TopLevel,194201," 105,380.64 ",Information Management Services,SME,Programme Expenditure
UK Statistics Family,Office for National Statistics,13/01/2021,Surveys,Prices Division,Kantar UK Ltd,194203," 206,198.17 ",Statistical Services,Large,Programme Expenditure
UK Statistics Family,Office for National Statistics,13/01/2021,Surveys,Prices Division,Kantar UK Ltd,194203," 1,505.83 ",Statistical Services,Large,Programme Expenditure
UK Statistics Family,Office for National Statistics,13/01/2021,Marketing & Media,Stakeholder Engagement And Comms,Manning Gottlieb,194207," 29,736.42 ",Marketing Services,Large,Programme Expenditure
UK Statistics Family,Office for National Statistics,13/01/2021,Exp - Short-Term Contract & Agency Staff - Full Cost,International Trade And Transactions,Talent International,194210," 7,531.60 ",Information Management Services,SME,Programme Expenditure
UK Statistics Family,Office for National Statistics,13/01/2021,Exp - Purchase Of Goods/Services - Contractors,MDR Management,Talent International,194210," 12,350.00 ",Information Management Services,SME,Programme Expenditure
UK Statistics Family,Office for National Statistics,13/01/2021,Exp - Purchase Of Goods/Services - Contractors,Data Architecture,Talent International,194210," 15,276.00 ",Information Management Services,SME,Programme Expenditure
UK Statistics Family,Office for National Statistics,13/01/2021,Exp - Purchase Of Goods/Services - Contractors,Digital Delivery,Talent International,194210," 11,188.80 ",Information Management Services,SME,Programme Expenditure
UK Statistics Family,Office for National Statistics,13/01/2021,Exp - Purchase Of Goods/Services - IT Contractual Services,Digital Delivery,Equal Experts UK Ltd,194214," 97,761.60 ",Information Management Services,Large,Programme Expenditure
UK Statistics Family,Office for National Statistics,14/01/2021,Exp - Purchase Of Goods/Services - IT Contractual Services,CLOUD ARCHITECTURE,E Synergy Solutions,194317," 10,080.00 ",Information Management Services,SME,Programme Expenditure
UK Statistics Family,Office for National Statistics,14/01/2021,Exp - Purchase Of Goods/Services - IT Contractual Services,Tech Delivery Legacy Sp,E Synergy Solutions,194317," 82,782.00 ",Information Management Services,SME,Programme Expenditure
UK Statistics Family,Office for National Statistics,14/01/2021,Exp - Purchase Of Goods/Services - IT Contractual Services,Tech Delivery Next Gen IT And Infrastructure,E Synergy Solutions,194317," 21,600.00 ",Information Management Services,SME,Programme Expenditure
UK Statistics Family,Office for National Statistics,14/01/2021,Exp - Purchase Of Goods/Services - IT Contractual Services,Digital Delivery,E Synergy Solutions,194317," 12,420.00 ",Information Management Services,SME,Programme Expenditure
UK Statistics Family,Office for National Statistics,14/01/2021,FM Contract Payments,FM Payments,Vinci Construction UK Limited,194318," 80,767.97 ",Facilities Mangement Services,Large,Programme Expenditure
UK Statistics Family,Office for National Statistics,14/01/2021,Exp - Purchase Of Goods/Services - Contractors,Testing,Certes Computing Ltd,194323," 9,223.20 ",Information Management Services,SME,Programme Expenditure
UK Statistics Family,Office for National Statistics,14/01/2021,Exp - Purchase Of Goods/Services - Contractors,Senior Management,Certes Computing Ltd,194323," 14,603.40 ",Information Management Services,SME,Programme Expenditure
UK Statistics Family,Office for National Statistics,14/01/2021,Exp - Purchase Of Goods/Services - Contractors,Programme Delivery,Certes Computing Ltd,194323," 11,529.00 ",Information Management Services,SME,Programme Expenditure
UK Statistics Family,Office for National Statistics,14/01/2021,Exp - Purchase Of Goods/Services - Contractors,Strategy And Architecture,Certes Computing Ltd,194323," 13,321.92 ",Information Management Services,SME,Programme Expenditure
UK Statistics Family,Office for National Statistics,14/01/2021,Exp - Purchase Of Goods/Services - Contractors,Digital Delivery,Certes Computing Ltd,194323," 4,259.22 ",Information Management Services,SME,Programme Expenditure
UK Statistics Family,Office for National Statistics,14/01/2021,Exp - Purchase Of Goods/Services - Contractors,Testing,Malikshaw Interim & Executive,194326," 48,000.00 ",Information Management Services,SME,Programme Expenditure
UK Statistics Family,Office for National Statistics,14/01/2021,Exp - Purchase Of Goods/Services - Contractors,Digital Delivery,Malikshaw Interim & Executive,194326," 15,120.00 ",Information Management Services,SME,Programme Expenditure
UK Statistics Family,Office for National Statistics,14/01/2021,Exp - Short-Term Contract & Agency Staff - Full Cost,Data As A Service,Malikshaw Interim & Executive,194326," 3,178.15 ",Information Management Services,SME,Programme Expenditure
UK Statistics Family,Office for National Statistics,14/01/2021,Exp - Purchase Of Goods/Services - IT Contractual Services,Tech Delivery Legacy Sp,CTS (Cloud Technology Solutions Ltd),194328," 110,455.20 ",DST Infrastructure Preparation,Large,Programme Expenditure
UK Statistics Family,Office for National Statistics,14/01/2021,Exp - Purchase Of Goods And Services Consultants,Consultancy Management,Bloom Procurement Services Ltd,194331," 54,444.94 ",Consultancy,Large,Programme Expenditure
UK Statistics Family,Office for National Statistics,14/01/2021,Exp - Purchase Of Goods/Services - IT Contractual Services,IT Operations,Methods Business & Digital Technology Ltd,194333," 37,425.00 ",Information Management Services,Large,Programme Expenditure
UK Statistics Family,Office for National Statistics,14/01/2021,Exp - Purchase Of Goods/Services - IT Contractual Services,Office Of Chief Data And Information,Akamai Technologies Limited,194337," 36,200.00 ",Information Management Services,SME,Programme Expenditure
UK Statistics Family,Office for National Statistics,14/01/2021,Exp - Purchase Of Goods/Services - IT Contractual Services,Tech Delivery Legacy Sp,Armakuni Ltd,194338," 64,320.00 ",Information Management Services,SME,Programme Expenditure
UK Statistics Family,Office for National Statistics,15/01/2021,Postage,Social Surveys Division,APS Group,194353," 59,978.07 ",Mailing Services,Large,Programme Expenditure
UK Statistics Family,Office for National Statistics,15/01/2021,Exp - Purchase Of Goods/Services - Contractors,Business Architecture,LA FOSSE ASSOCIATES LIMITED,194355," 35,235.00 ",Information Management Services,Large,Programme Expenditure
UK Statistics Family,Office for National Statistics,15/01/2021,EXP - PURCHASE OF GOODS/SERVICES -  NON IT CONTRACTUAL PAYMENTS,Data Collection Service,Good Things Foundation,194361," 130,040.00 ",Census Assisted Digital Services,SME,Programme Expenditure
UK Statistics Family,Office for National Statistics,18/01/2021,Exp - Purchase Of Goods/Services - Contractors,Business Architecture,LA FOSSE ASSOCIATES LIMITED,194472," 37,720.00 ",Information Management Services,Large,Programme Expenditure
UK Statistics Family,Office for National Statistics,18/01/2021,Exp - Purchase Of Goods/Services - Contractors,Business Architecture,LA FOSSE ASSOCIATES LIMITED,194472," 2,750.00 ",Information Management Services,Large,Programme Expenditure
UK Statistics Family,Office for National Statistics,18/01/2021,Exp - Purchase Of Goods/Services - Contractors,Consultancy Management,LA FOSSE ASSOCIATES LIMITED,194472," 20,099.94 ",Information Management Services,Large,Programme Expenditure
UK Statistics Family,Office for National Statistics,18/01/2021,Exp - Purchase Of Goods/Services - Contractors,Data Architecture,LA FOSSE ASSOCIATES LIMITED,194472," 4,050.00 ",Information Management Services,Large,Programme Expenditure
UK Statistics Family,Office for National Statistics,18/01/2021,Exp - Purchase Of Goods/Services - Contractors,Tech Delivery Legacy Sp,LA FOSSE ASSOCIATES LIMITED,194472," 3,600.00 ",Information Management Services,Large,Programme Expenditure
UK Statistics Family,Office for National Statistics,18/01/2021,Exp - Purchase Of Goods/Services - Contractors,Business Statistics Transformation,LA FOSSE ASSOCIATES LIMITED,194472," 3,300.00 ",Information Management Services,Large,Programme Expenditure
UK Statistics Family,Office for National Statistics,19/01/2021,Exp - Purchase Of Goods/Services - Incentive Payments,Social Survey Transformation Newport,P & Mm Ltd,194554," 2,181.40 ",Survey Response Incentive Vouchers,Large,Programme Expenditure
UK Statistics Family,Office for National Statistics,19/01/2021,Exp - Purchase Of Goods/Services - Incentive Payments,Social Survey Transformation Newport,P & Mm Ltd,194554," 3,605.80 ",Survey Response Incentive Vouchers,Large,Programme Expenditure
UK Statistics Family,Office for National Statistics,19/01/2021,Exp - Purchase Of Goods/Services - Incentive Payments,Social Survey Transformation Newport,P & Mm Ltd,194554," 46,357.20 ",Survey Response Incentive Vouchers,Large,Programme Expenditure
UK Statistics Family,Office for National Statistics,19/01/2021,Exp - Purchase Of Goods/Services - Incentive Payments,Survey Management,P & Mm Ltd,194554," 40,367.00 ",Survey Response Incentive Vouchers,Large,Programme Expenditure
UK Statistics Family,Office for National Statistics,19/01/2021,Exp - Purchase Of Goods/Services - Incentive Payments,Survey Management,P & Mm Ltd,194554," 6,211.60 ",Survey Response Incentive Vouchers,Large,Programme Expenditure
UK Statistics Family,Office for National Statistics,19/01/2021,Exp - Purchase Of Goods/Services - Incentive Payments,Survey Management,P & Mm Ltd,194554," 4,028.00 ",Survey Response Incentive Vouchers,Large,Programme Expenditure
UK Statistics Family,Office for National Statistics,19/01/2021,Exp - Purchase Of Goods/Services - Incentive Payments,Survey Management,P & Mm Ltd,194554," 8,374.00 ",Survey Response Incentive Vouchers,Large,Programme Expenditure
UK Statistics Family,Office for National Statistics,19/01/2021,Exp - Purchase Of Goods/Services - Incentive Payments,Survey Management,P & Mm Ltd,194554," 4,199.80 ",Survey Response Incentive Vouchers,Large,Programme Expenditure
UK Statistics Family,Office for National Statistics,19/01/2021,Exp - Purchase Of Goods/Services - Incentive Payments,Social Survey Transformation Newport,P & Mm Ltd,194554," 5,680.80 ",Survey Response Incentive Vouchers,Large,Programme Expenditure
UK Statistics Family,Office for National Statistics,19/01/2021,Exp - Purchase Of Goods/Services - Incentive Payments,Social Survey Transformation Newport,P & Mm Ltd,194554," 370,372.00 ",Survey Response Incentive Vouchers,Large,Programme Expenditure
UK Statistics Family,Office for National Statistics,19/01/2021,Exp - Purchase Of Goods/Services - Incentive Payments,Survey Management,P & Mm Ltd,194554," 3,675.60 ",Survey Response Incentive Vouchers,Large,Programme Expenditure
UK Statistics Family,Office for National Statistics,19/01/2021,Exp - Purchase Of Goods/Services - Incentive Payments,Survey Management,P & Mm Ltd,194554," 243,126.00 ",Survey Response Incentive Vouchers,Large,Programme Expenditure
UK Statistics Family,Office for National Statistics,19/01/2021,Exp - Purchase Of Goods/Services - Incentive Payments,Social Survey Transformation Newport,P & Mm Ltd,194554," 10,829.20 ",Survey Response Incentive Vouchers,Large,Programme Expenditure
UK Statistics Family,Office for National Statistics,19/01/2021,Exp - Purchase Of Goods/Services - Incentive Payments,Social Survey Transformation Newport,P & Mm Ltd,194554," 33,024.20 ",Survey Response Incentive Vouchers,Large,Programme Expenditure
UK Statistics Family,Office for National Statistics,19/01/2021,Exp - Purchase Of Goods/Services - Incentive Payments,Survey Management,P & Mm Ltd,194554," 5,278.80 ",Survey Response Incentive Vouchers,Large,Programme Expenditure
UK Statistics Family,Office for National Statistics,19/01/2021,Exp - Purchase Of Goods/Services - Incentive Payments,Survey Management,P & Mm Ltd,194554," 27,526.20 ",Survey Response Incentive Vouchers,Large,Programme Expenditure
UK Statistics Family,Office for National Statistics,19/01/2021,Exp - Purchase Of Goods/Services - Incentive Payments,Survey Management,P & Mm Ltd,194554," 3,455.60 ",Survey Response Incentive Vouchers,Large,Programme Expenditure
UK Statistics Family,Office for National Statistics,19/01/2021,Exp - Purchase Of Goods/Services - Incentive Payments,Survey Management,P & Mm Ltd,194554," 8,855.00 ",Survey Response Incentive Vouchers,Large,Programme Expenditure
UK Statistics Family,Office for National Statistics,19/01/2021,Exp - Purchase Of Goods/Services - Incentive Payments,Survey Management,P & Mm Ltd,194554," 154,084.60 ",Survey Response Incentive Vouchers,Large,Programme Expenditure
UK Statistics Family,Office for National Statistics,19/01/2021,Exp - Purchase Of Goods/Services - Incentive Payments,Social Survey Transformation Newport,P & Mm Ltd,194554," 214,756.80 ",Survey Response Incentive Vouchers,Large,Programme Expenditure
UK Statistics Family,Office for National Statistics,19/01/2021,Exp - Purchase Of Goods/Services - Incentive Payments,Social Survey Transformation Newport,P & Mm Ltd,194554," 7,851.20 ",Survey Response Incentive Vouchers,Large,Programme Expenditure
UK Statistics Family,Office for National Statistics,19/01/2021,Exp - Purchase Of Goods/Services - Incentive Payments,Survey Management,P & Mm Ltd,194554," 3,171.60 ",Survey Response Incentive Vouchers,Large,Programme Expenditure
UK Statistics Family,Office for National Statistics,19/01/2021,Other Goods And Services,Social Survey Transformation Newport,APS Group,194562," 30,032.75 ",Mailing Services,Large,Programme Expenditure
UK Statistics Family,Office for National Statistics,19/01/2021,Exp - Purchase Of Goods/Services - Contractors,Commercial Services,Parity Resources Limited,194569," 25,952.40 ",Information Management Services,Large,Programme Expenditure
UK Statistics Family,Office for National Statistics,19/01/2021,Exp - Purchase Of Goods/Services - Contractors,CDIO UNGP,Parity Resources Limited,194569," 2,155.50 ",Information Management Services,Large,Programme Expenditure
UK Statistics Family,Office for National Statistics,19/01/2021,Exp - Purchase Of Goods/Services - Contractors,IT Applications,Parity Resources Limited,194569," 1,384.20 ",Information Management Services,Large,Programme Expenditure
UK Statistics Family,Office for National Statistics,19/01/2021,Exp - Purchase Of Goods/Services - Contractors,Digital Delivery,Parity Resources Limited,194569," 2,058.30 ",Information Management Services,Large,Programme Expenditure
UK Statistics Family,Office for National Statistics,19/01/2021,Exp - Purchase Of Goods/Services - Contractors,Commercial Services,Gardiner & Theobald LLP,194573," 17,580.00 ",Contingent Labour,Large,Programme Expenditure
UK Statistics Family,Office for National Statistics,19/01/2021,Exp - Purchase Of Goods/Services - Contractors,Commercial Services,Gardiner & Theobald LLP,194573," 7,500.00 ",Contingent Labour,Large,Programme Expenditure
UK Statistics Family,Office for National Statistics,19/01/2021,Exp - Purchase Of Goods And Services Consultants,Commercial Services,Gardiner & Theobald LLP,194573," 26,400.00 ",Contingent Labour,Large,Programme Expenditure
UK Statistics Family,Office for National Statistics,20/01/2021,Exp - Purchase Of Goods/Services - Incentive Payments,Survey Management,Park Retail Ltd,194576," 40,200.77 ",Survey Response Incentive Vouchers,Large,Programme Expenditure
UK Statistics Family,Office for National Statistics,20/01/2021,"ICT Outsourcing, Maintenance And Support",IT Operations,KCOM Group PLC,194581," 113,930.71 ",Software Licenses,SME,Programme Expenditure
UK Statistics Family,Office for National Statistics,20/01/2021,Exp - Purchase Of Goods/Services - IT Contractual Services,IT Operations,Methods Business & Digital Technology Ltd,194583," 48,952.51 ",Information Management Services,Large,Programme Expenditure
UK Statistics Family,Office for National Statistics,20/01/2021,Telecoms,Census CCS Data Collection,Cdw Limited,194585," 2,988.00 ",Software Licenses,Large,Programme Expenditure
UK Statistics Family,Office for National Statistics,20/01/2021,Telecoms,IT Operations,Cdw Limited,194585," 394,896.00 ",Software Licenses,Large,Programme Expenditure
UK Statistics Family,Office for National Statistics,20/01/2021,Exp - Purchase Of Goods/Services - Contractors,Tech Delivery Legacy Sp,Talent International,194587," 28,470.00 ",Information Management Services,SME,Programme Expenditure
UK Statistics Family,Office for National Statistics,20/01/2021,Exp - Purchase Of Goods/Services - Contractors,IT Applications,Talent International,194587," 13,679.77 ",Information Management Services,SME,Programme Expenditure
UK Statistics Family,Office for National Statistics,20/01/2021,Exp - Short-Term Contract & Agency Staff - Full Cost,Interviewer Management TU,Talent International,194587," 2,391.86 ",Information Management Services,SME,Programme Expenditure
UK Statistics Family,Office for National Statistics,20/01/2021,Exp - Purchase Of Goods/Services - Contractors,DST Legacy,LA FOSSE ASSOCIATES LIMITED,194588," 28,680.00 ",Information Management Services,Large,Programme Expenditure
UK Statistics Family,Office for National Statistics,20/01/2021,Exp - Purchase Of Goods/Services - Contractors,Business Architecture,LA FOSSE ASSOCIATES LIMITED,194588," 4,350.00 ",Information Management Services,Large,Programme Expenditure
UK Statistics Family,Office for National Statistics,20/01/2021,Exp - Purchase Of Goods/Services - Contractors,Programme Support,LA FOSSE ASSOCIATES LIMITED,194588," 3,000.00 ",Information Management Services,Large,Programme Expenditure
UK Statistics Family,Office for National Statistics,20/01/2021,Exp - Purchase Of Goods/Services - Contractors,Tech Delivery Legacy Sp,LA FOSSE ASSOCIATES LIMITED,194588," 3,600.00 ",Information Management Services,Large,Programme Expenditure
UK Statistics Family,Office for National Statistics,21/01/2021,Other Goods And Services,Social Survey Transformation Newport,APS Group,194739," 318,005.77 ",Mailing Services,Large,Programme Expenditure
UK Statistics Family,Office for National Statistics,21/01/2021,Exp - Purchase Of Goods And Services Consultants,Consultancy Management,Bloom Procurement Services Ltd,194740," 441,957.62 ",Consultancy,Large,Programme Expenditure
UK Statistics Family,Office for National Statistics,21/01/2021,Telecoms,Tech Delivery Next Gen IT And Infrastructure,Freedom Communications (UK) Ltd,194741, 167.33 ,Software Licenses,Large,Programme Expenditure
UK Statistics Family,Office for National Statistics,21/01/2021,Telecoms,IT Operations,Freedom Communications (UK) Ltd,194741," 33,223.61 ",Software Licenses,Large,Programme Expenditure
UK Statistics Family,Office for National Statistics,21/01/2021,Exp - Permanent UK Staff - PRP Voucher Payments,ONS Corporate Funds,Edenred (UK Group) Limited,194746," 30,000.00 ",Performance Reward Vouchers,Large,Programme Expenditure
UK Statistics Family,Office for National Statistics,21/01/2021,Other Goods And Services,ONS Corporate Funds,Edenred (UK Group) Limited,194746," 4,950.00 ",Performance Reward Vouchers,Large,Programme Expenditure
UK Statistics Family,Office for National Statistics,22/01/2021,Exp - Purchase Of Goods/Services - IT Contractual Services,IT Applications,E Synergy Solutions,194828," 71,064.00 ",Information Management Services,SME,Programme Expenditure
UK Statistics Family,Office for National Statistics,22/01/2021,Exp - Purchase Of Goods/Services - IT Contractual Services,IT Operations,E Synergy Solutions,194828," 31,950.00 ",Information Management Services,SME,Programme Expenditure
UK Statistics Family,Office for National Statistics,22/01/2021,Exp - Purchase Of Goods/Services - IT Contractual Services,IT Operations,E Synergy Solutions,194828," 27,090.00 ",Information Management Services,SME,Programme Expenditure
UK Statistics Family,Office for National Statistics,22/01/2021,Exp - Purchase Of Goods/Services - Contractors,CDIO UNGP,Talent International,194833," 20,999.83 ",Information Management Services,SME,Programme Expenditure
UK Statistics Family,Office for National Statistics,22/01/2021,Exp - Purchase Of Goods/Services - Contractors,Strategy And Architecture,Talent International,194833," 11,400.00 ",Information Management Services,SME,Programme Expenditure
UK Statistics Family,Office for National Statistics,22/01/2021,Exp - Purchase Of Goods/Services - IT Contractual Services,Tech Delivery Next Gen IT And Infrastructure,Diegesis Limited,194836," 33,360.00 ",Information Management Services,Large,Programme Expenditure
UK Statistics Family,Office for National Statistics,22/01/2021,Exp - Purchase Of Goods/Services - IT Contractual Services,Tech Delivery Next Gen IT And Infrastructure,Diegesis Limited,194836," 47,040.00 ",Information Management Services,Large,Programme Expenditure
UK Statistics Family,Office for National Statistics,22/01/2021,Exp - Purchase Of Goods/Services - IT Contractual Services,IT Applications,Diegesis Limited,194836," 132,540.00 ",Information Management Services,Large,Programme Expenditure
UK Statistics Family,Office for National Statistics,25/01/2021,Exp - Short-Term Contract & Agency Staff - Full Cost,Business Change Support,Malikshaw Interim & Executive,194921," 4,449.41 ",Information Management Services,SME,Programme Expenditure
UK Statistics Family,Office for National Statistics,25/01/2021,Exp - Short-Term Contract & Agency Staff - Full Cost,International Trade And Transactions,Malikshaw Interim & Executive,194921," 4,449.41 ",Information Management Services,SME,Programme Expenditure
UK Statistics Family,Office for National Statistics,25/01/2021,Exp - Purchase Of Goods/Services - Contractors,Portfolio Delivery,Malikshaw Interim & Executive,194921," 5,400.00 ",Information Management Services,SME,Programme Expenditure
UK Statistics Family,Office for National Statistics,25/01/2021,Exp - Purchase Of Goods/Services - Contractors,Strategy And Architecture,Malikshaw Interim & Executive,194921," 7,907.12 ",Information Management Services,SME,Programme Expenditure
UK Statistics Family,Office for National Statistics,25/01/2021,Exp - Purchase Of Goods/Services - Contractors,IT Applications,Malikshaw Interim & Executive,194921," 10,080.00 ",Information Management Services,SME,Programme Expenditure
UK Statistics Family,Office for National Statistics,25/01/2021,Exp - Purchase Of Goods/Services - Contractors,Digital Delivery,Malikshaw Interim & Executive,194921," 41,247.89 ",Information Management Services,SME,Programme Expenditure
UK Statistics Family,Office for National Statistics,25/01/2021,Exp - Purchase Of Goods/Services - Contractors,Digital Delivery,Malikshaw Interim & Executive,194921," 14,439.10 ",Information Management Services,SME,Programme Expenditure
UK Statistics Family,Office for National Statistics,25/01/2021,Exp - Short-Term Contract & Agency Staff - Full Cost,Data As A Service,Malikshaw Interim & Executive,194921," 4,366.38 ",Information Management Services,SME,Programme Expenditure
UK Statistics Family,Office for National Statistics,25/01/2021,EXP - PURCHASE OF GOODS/SERVICES -  NON IT CONTRACTUAL PAYMENTS,Data Collection Service,Serco Ltd,194922," 71,218.74 ",Census Contact Centre,Large,Programme Expenditure
UK Statistics Family,Office for National Statistics,25/01/2021,EXP - PURCHASE OF GOODS/SERVICES -  NON IT CONTRACTUAL PAYMENTS,Census CCS Data Collection,Granby Marketing Services Ltd,194927," 58,186.51 ",Storage and Distribution Services,Large,Programme Expenditure
UK Statistics Family,Office for National Statistics,25/01/2021,Other Goods And Services,Beyond 2021 Research And Design,The Sensible Code Company,194932," 70,560.00 ",Statistical Services,SME,Programme Expenditure
UK Statistics Family,Office for National Statistics,25/01/2021,Exp - Short-Term Contract & Agency Staff - Full Cost,Stakeholder Engagement And Comms,Concept Information Technology Ltd T/A Concept Resourcing,194945," 2,526.13 ",Information Management Services,Large,Programme Expenditure
UK Statistics Family,Office for National Statistics,25/01/2021,Exp - Short-Term Contract & Agency Staff - Full Cost,Business Change Support,Concept Information Technology Ltd T/A Concept Resourcing,194945," 3,664.44 ",Information Management Services,Large,Programme Expenditure
UK Statistics Family,Office for National Statistics,25/01/2021,Exp - Short-Term Contract & Agency Staff - Full Cost,Business Change Support,Concept Information Technology Ltd T/A Concept Resourcing,194945," 3,634.94 ",Information Management Services,Large,Programme Expenditure
UK Statistics Family,Office for National Statistics,25/01/2021,Exp - Short-Term Contract & Agency Staff - Full Cost,Business Change Support,Concept Information Technology Ltd T/A Concept Resourcing,194945," 3,825.53 ",Information Management Services,Large,Programme Expenditure
UK Statistics Family,Office for National Statistics,25/01/2021,Exp - Short-Term Contract & Agency Staff - Full Cost,Business Change Support,Concept Information Technology Ltd T/A Concept Resourcing,194945," 7,906.16 ",Information Management Services,Large,Programme Expenditure
UK Statistics Family,Office for National Statistics,25/01/2021,Exp - Short-Term Contract & Agency Staff - Full Cost,Business Change Support,Concept Information Technology Ltd T/A Concept Resourcing,194945," 4,432.72 ",Information Management Services,Large,Programme Expenditure
UK Statistics Family,Office for National Statistics,25/01/2021,Exp - Short-Term Contract & Agency Staff - Full Cost,Business Change Support,Concept Information Technology Ltd T/A Concept Resourcing,194945," 4,835.69 ",Information Management Services,Large,Programme Expenditure
UK Statistics Family,Office for National Statistics,25/01/2021,Exp - Short-Term Contract & Agency Staff - Full Cost,International Trade And Transactions,Concept Information Technology Ltd T/A Concept Resourcing,194945," 8,857.28 ",Information Management Services,Large,Programme Expenditure
UK Statistics Family,Office for National Statistics,25/01/2021,Exp - Short-Term Contract & Agency Staff - Full Cost,International Trade And Transactions,Concept Information Technology Ltd T/A Concept Resourcing,194945," 4,432.72 ",Information Management Services,Large,Programme Expenditure
UK Statistics Family,Office for National Statistics,25/01/2021,Exp - Purchase Of Goods/Services - Contractors,Census & Soc Methodology Dd,Concept Information Technology Ltd T/A Concept Resourcing,194945," 7,812.00 ",Information Management Services,Large,Programme Expenditure
UK Statistics Family,Office for National Statistics,25/01/2021,Exp - Short-Term Contract & Agency Staff - Full Cost,Business Statistics Transformation,Concept Information Technology Ltd T/A Concept Resourcing,194945," 4,432.72 ",Information Management Services,Large,Programme Expenditure
UK Statistics Family,Office for National Statistics,25/01/2021,Exp - Short-Term Contract & Agency Staff - Full Cost,Business Statistics Transformation,Concept Information Technology Ltd T/A Concept Resourcing,194945," 8,152.18 ",Information Management Services,Large,Programme Expenditure
UK Statistics Family,Office for National Statistics,25/01/2021,Exp - Short-Term Contract & Agency Staff - Full Cost,Business Statistics Transformation,Concept Information Technology Ltd T/A Concept Resourcing,194945," 2,984.65 ",Information Management Services,Large,Programme Expenditure
UK Statistics Family,Office for National Statistics,25/01/2021,Exp - Short-Term Contract & Agency Staff - Full Cost,Prices Division,Concept Information Technology Ltd T/A Concept Resourcing,194945," 4,275.35 ",Information Management Services,Large,Programme Expenditure
UK Statistics Family,Office for National Statistics,25/01/2021,Exp - Purchase Of Goods/Services - IT Contractual Services,Strategy And Architecture,Ibm United Kingdom Ltd,194949," 27,618.56 ",Information Management Services,Large,Programme Expenditure
UK Statistics Family,Office for National Statistics,25/01/2021,Exp - Purchase Of Goods/Services - Contractors,Business Architecture Transformation And Statistical Strategy,Certes Computing Ltd,194955," 11,438.76 ",Information Management Services,SME,Programme Expenditure
UK Statistics Family,Office for National Statistics,25/01/2021,Exp - Purchase Of Goods/Services - Contractors,Strategy And Architecture,Certes Computing Ltd,194955," 14,603.40 ",Information Management Services,SME,Programme Expenditure
UK Statistics Family,Office for National Statistics,25/01/2021,Exp - Purchase Of Goods/Services - Contractors,Strategy And Architecture,Certes Computing Ltd,194955," 6,479.35 ",Information Management Services,SME,Programme Expenditure
UK Statistics Family,Office for National Statistics,25/01/2021,Exp - Purchase Of Goods/Services - Contractors,Tech Delivery Legacy Sp,Certes Computing Ltd,194955," 12,105.50 ",Information Management Services,SME,Programme Expenditure
UK Statistics Family,Office for National Statistics,25/01/2021,Exp - Purchase Of Goods/Services - Contractors,Digital Delivery,Certes Computing Ltd,194955," 9,360.00 ",Information Management Services,SME,Programme Expenditure
UK Statistics Family,Office for National Statistics,25/01/2021,Exp - Purchase Of Goods/Services - Contractors,Digital Delivery,Certes Computing Ltd,194955," 14,398.56 ",Information Management Services,SME,Programme Expenditure
UK Statistics Family,Office for National Statistics,25/01/2021,Exp - Short-Term Contract & Agency Staff - Full Cost,Stakeholder Engagement And Comms,La International,194956," 2,319.80 ",Information Management Services,SME,Programme Expenditure
UK Statistics Family,Office for National Statistics,25/01/2021,Exp - Purchase Of Goods/Services - Contractors,Business Architecture,La International,194956," 7,048.44 ",Information Management Services,SME,Programme Expenditure
UK Statistics Family,Office for National Statistics,25/01/2021,Exp - Purchase Of Goods/Services - Contractors,Testing,La International,194956," 22,010.37 ",Information Management Services,SME,Programme Expenditure
UK Statistics Family,Office for National Statistics,25/01/2021,Exp - Purchase Of Goods/Services - Contractors,Sustainability And Inequalities,La International,194956, 631.38 ,Information Management Services,SME,Programme Expenditure
UK Statistics Family,Office for National Statistics,25/01/2021,Exp - Purchase Of Goods/Services - Contractors,Data Architecture,La International,194956," 6,760.10 ",Information Management Services,SME,Programme Expenditure
UK Statistics Family,Office for National Statistics,25/01/2021,Exp - Purchase Of Goods/Services - Contractors,Data Architecture,La International,194956," 3,524.22 ",Information Management Services,SME,Programme Expenditure
UK Statistics Family,Office for National Statistics,25/01/2021,Exp - Purchase Of Goods/Services - Contractors,Data Architecture,La International,194956," 10,316.40 ",Information Management Services,SME,Programme Expenditure
UK Statistics Family,Office for National Statistics,25/01/2021,Exp - Purchase Of Goods/Services - Contractors,Data Architecture,La International,194956," 14,769.76 ",Information Management Services,SME,Programme Expenditure
UK Statistics Family,Office for National Statistics,25/01/2021,Exp - Purchase Of Goods/Services - Contractors,Tech Delivery Legacy Sp,La International,194956," 27,488.92 ",Information Management Services,SME,Programme Expenditure
UK Statistics Family,Office for National Statistics,25/01/2021,Exp - Purchase Of Goods/Services - Contractors,Tech Delivery Legacy Sp,La International,194956," 2,819.38 ",Information Management Services,SME,Programme Expenditure
UK Statistics Family,Office for National Statistics,25/01/2021,Exp - Purchase Of Goods/Services - Contractors,Tech Delivery Data As A Platform,La International,194956," 3,203.88 ",Information Management Services,SME,Programme Expenditure
UK Statistics Family,Office for National Statistics,25/01/2021,Exp - Purchase Of Goods/Services - Contractors,Tech Delivery Data As A Platform,La International,194956," 7,176.60 ",Information Management Services,SME,Programme Expenditure
UK Statistics Family,Office for National Statistics,25/01/2021,Exp - Purchase Of Goods/Services - Contractors,Digital Delivery,La International,194956," 12,927.60 ",Information Management Services,SME,Programme Expenditure
UK Statistics Family,Office for National Statistics,25/01/2021,Exp - Short-Term Contract & Agency Staff - Full Cost,Social Survey Transformation Newport,La International,194956,-136.13 ,Information Management Services,SME,Programme Expenditure
UK Statistics Family,Office for National Statistics,25/01/2021,"ICT Outsourcing, Maintenance And Support",IT Operations,Computacenter (Uk) Limited,194958," 34,139.52 ",Information Management Services,Large,Programme Expenditure
UK Statistics Family,Office for National Statistics,25/01/2021,Stationery,Ask Business Services,APS Group,194969, 490.69 ,Mailing Services,Large,Programme Expenditure
UK Statistics Family,Office for National Statistics,25/01/2021,Other Goods And Services,Social Survey Transformation Newport,APS Group,194969," 70,874.02 ",Mailing Services,Large,Programme Expenditure
UK Statistics Family,Office for National Statistics,25/01/2021,Other Goods And Services,Social Survey Transformation Newport,APS Group,194969," 4,790.60 ",Mailing Services,Large,Programme Expenditure
UK Statistics Family,Office for National Statistics,26/01/2021,Exp - Purchase Of Goods/Services - IT Contractual Services,Strategy And Architecture,E Synergy Solutions,194974," 11,700.00 ",Information Management Services,SME,Programme Expenditure
UK Statistics Family,Office for National Statistics,26/01/2021,Exp - Purchase Of Goods/Services - IT Contractual Services,IT Applications,E Synergy Solutions,194974," 63,189.00 ",Information Management Services,SME,Programme Expenditure
UK Statistics Family,Office for National Statistics,26/01/2021,Exp - Purchase Of Goods/Services - IT Contractual Services,IT Operations,E Synergy Solutions,194974," 32,115.00 ",Information Management Services,SME,Programme Expenditure
UK Statistics Family,Office for National Statistics,26/01/2021,Exp - Purchase Of Goods/Services - IT Contractual Services,IT Operations,E Synergy Solutions,194974," 27,090.00 ",Information Management Services,SME,Programme Expenditure
UK Statistics Family,Office for National Statistics,26/01/2021,Exp - Purchase Of Goods/Services - IT Contractual Services,Data Science Campus,E Synergy Solutions,194974," 3,600.00 ",Information Management Services,SME,Programme Expenditure
UK Statistics Family,Office for National Statistics,26/01/2021,Exp - Short-Term Contract & Agency Staff - Full Cost,Business Change Support,Concept Information Technology Ltd T/A Concept Resourcing,194977,-0.01 ,Information Management Services,Large,Programme Expenditure
UK Statistics Family,Office for National Statistics,26/01/2021,Exp - Short-Term Contract & Agency Staff - Full Cost,Business Change Support,Concept Information Technology Ltd T/A Concept Resourcing,194977," 2,763.90 ",Information Management Services,Large,Programme Expenditure
UK Statistics Family,Office for National Statistics,26/01/2021,Exp - Short-Term Contract & Agency Staff - Full Cost,Business Change Support,Concept Information Technology Ltd T/A Concept Resourcing,194977," 12,103.67 ",Information Management Services,Large,Programme Expenditure
UK Statistics Family,Office for National Statistics,26/01/2021,Exp - Short-Term Contract & Agency Staff - Full Cost,Business Change Support,Concept Information Technology Ltd T/A Concept Resourcing,194977," 4,432.72 ",Information Management Services,Large,Programme Expenditure
UK Statistics Family,Office for National Statistics,26/01/2021,Exp - Short-Term Contract & Agency Staff - Full Cost,Business Change Support,Concept Information Technology Ltd T/A Concept Resourcing,194977," 8,865.45 ",Information Management Services,Large,Programme Expenditure
UK Statistics Family,Office for National Statistics,26/01/2021,Exp - Short-Term Contract & Agency Staff - Full Cost,International Trade And Transactions,Concept Information Technology Ltd T/A Concept Resourcing,194977," 4,378.26 ",Information Management Services,Large,Programme Expenditure
UK Statistics Family,Office for National Statistics,26/01/2021,Exp - Short-Term Contract & Agency Staff - Full Cost,International Trade And Transactions,Concept Information Technology Ltd T/A Concept Resourcing,194977," 4,432.72 ",Information Management Services,Large,Programme Expenditure
UK Statistics Family,Office for National Statistics,26/01/2021,Exp - Short-Term Contract & Agency Staff - Full Cost,Strategy And Engagement,Concept Information Technology Ltd T/A Concept Resourcing,194977," 2,886.17 ",Information Management Services,Large,Programme Expenditure
UK Statistics Family,Office for National Statistics,26/01/2021,Exp - Short-Term Contract & Agency Staff - Full Cost,Business Architecture Transformation And Statistical Strategy,Concept Information Technology Ltd T/A Concept Resourcing,194977," 3,403.50 ",Information Management Services,Large,Programme Expenditure
UK Statistics Family,Office for National Statistics,26/01/2021,Exp - Short-Term Contract & Agency Staff - Full Cost,Data Architecture,Concept Information Technology Ltd T/A Concept Resourcing,194977," 3,258.89 ",Information Management Services,Large,Programme Expenditure
UK Statistics Family,Office for National Statistics,26/01/2021,Exp - Purchase Of Goods/Services - Contractors,Data Architecture,Concept Information Technology Ltd T/A Concept Resourcing,194977," 23,496.00 ",Information Management Services,Large,Programme Expenditure
UK Statistics Family,Office for National Statistics,26/01/2021,Exp - Short-Term Contract & Agency Staff - Full Cost,Business Statistics Transformation,Concept Information Technology Ltd T/A Concept Resourcing,194977," 3,223.80 ",Information Management Services,Large,Programme Expenditure
UK Statistics Family,Office for National Statistics,26/01/2021,Exp - Short-Term Contract & Agency Staff - Full Cost,Prices Division,Concept Information Technology Ltd T/A Concept Resourcing,194977," 4,174.87 ",Information Management Services,Large,Programme Expenditure
UK Statistics Family,Office for National Statistics,26/01/2021,Postage,Survey Processing Centre,DHL Parcel Ltd,194983," 52,241.89 ",Courier Services,Large,Programme Expenditure
UK Statistics Family,Office for National Statistics,26/01/2021,Exp - Purchase Of Goods/Services - Contractors,Business Architecture,La International,194987," 9,857.14 ",Information Management Services,SME,Programme Expenditure
UK Statistics Family,Office for National Statistics,26/01/2021,Exp - Purchase Of Goods/Services - Contractors,Testing,La International,194987," 23,868.60 ",Information Management Services,SME,Programme Expenditure
UK Statistics Family,Office for National Statistics,26/01/2021,Exp - Purchase Of Goods/Services - Contractors,Testing,La International,194987," 1,409.69 ",Information Management Services,SME,Programme Expenditure
UK Statistics Family,Office for National Statistics,26/01/2021,Exp - Short-Term Contract & Agency Staff - Full Cost,Census CCS Data Collection,La International,194987," 4,881.26 ",Information Management Services,SME,Programme Expenditure
UK Statistics Family,Office for National Statistics,26/01/2021,Exp - Purchase Of Goods/Services - Contractors,Sustainability And Inequalities,La International,194987," 4,419.66 ",Information Management Services,SME,Programme Expenditure
UK Statistics Family,Office for National Statistics,26/01/2021,Exp - Purchase Of Goods/Services - Contractors,Security Advisory,La International,194987," 3,470.85 ",Information Management Services,SME,Programme Expenditure
UK Statistics Family,Office for National Statistics,26/01/2021,Exp - Purchase Of Goods/Services - Contractors,Data Architecture,La International,194987," 7,112.52 ",Information Management Services,SME,Programme Expenditure
UK Statistics Family,Office for National Statistics,26/01/2021,Exp - Purchase Of Goods/Services - Contractors,Data Architecture,La International,194987," 3,524.22 ",Information Management Services,SME,Programme Expenditure
UK Statistics Family,Office for National Statistics,26/01/2021,Exp - Purchase Of Goods/Services - Contractors,Data Architecture,La International,194987," 18,005.64 ",Information Management Services,SME,Programme Expenditure
UK Statistics Family,Office for National Statistics,26/01/2021,Exp - Purchase Of Goods/Services - Contractors,IT Applications,La International,194987," 6,023.28 ",Information Management Services,SME,Programme Expenditure
UK Statistics Family,Office for National Statistics,26/01/2021,Exp - Purchase Of Goods/Services - Training & Development - Seminar & Conference Fees,DST Legacy,Cabinet Office,194992, 162.00 ,Fast Stream Recruitment,Large,Programme Expenditure
UK Statistics Family,Office for National Statistics,26/01/2021,Other Goods And Services,Recruitment ,Cabinet Office,194992," 1,209.60 ",Fast Stream Recruitment,Large,Programme Expenditure
UK Statistics Family,Office for National Statistics,26/01/2021,Permanent Staff Costs,ONS Transactions,Cabinet Office,194992," 142,560.00 ",Fast Stream Recruitment,Large,Programme Expenditure
UK Statistics Family,Office for National Statistics,26/01/2021,Exp - Purchase Of Goods/Services - IT Contractual Services,IT Operations,CTS (Cloud Technology Solutions Ltd),194997," 130,964.40 ",DST Infrastructure Preparation,Large,Programme Expenditure
UK Statistics Family,Office for National Statistics,26/01/2021,Exp - Purchase Of Goods/Services - IT Contractual Services,IT Operations,Methods Business & Digital Technology Ltd,195001,-450.00 ,Information Management Services,Large,Programme Expenditure
UK Statistics Family,Office for National Statistics,26/01/2021,Exp - Purchase Of Goods/Services - IT Contractual Services,Digital Delivery,Methods Business & Digital Technology Ltd,195001," 81,213.00 ",Information Management Services,Large,Programme Expenditure
UK Statistics Family,Office for National Statistics,26/01/2021,Exp - Short-Term Contract & Agency Staff - Full Cost,Stakeholder Engagement And Comms,Parity Resources Limited,195002," 3,159.35 ",Information Management Services,Large,Programme Expenditure
UK Statistics Family,Office for National Statistics,26/01/2021,Exp - Purchase Of Goods/Services - Contractors,Testing,Parity Resources Limited,195002," 28,401.48 ",Information Management Services,Large,Programme Expenditure
UK Statistics Family,Office for National Statistics,26/01/2021,Exp - Purchase Of Goods/Services - Contractors,Programme Delivery,Parity Resources Limited,195002," 13,200.00 ",Information Management Services,Large,Programme Expenditure
UK Statistics Family,Office for National Statistics,26/01/2021,Exp - Purchase Of Goods/Services - Contractors,Programme Delivery,Parity Resources Limited,195002," 26,785.44 ",Information Management Services,Large,Programme Expenditure
UK Statistics Family,Office for National Statistics,26/01/2021,Exp - Purchase Of Goods/Services - Contractors,Consultancy Management,Parity Resources Limited,195002," 11,400.00 ",Information Management Services,Large,Programme Expenditure
UK Statistics Family,Office for National Statistics,26/01/2021,Exp - Purchase Of Goods/Services - Contractors,Programme Support,Parity Resources Limited,195002," 2,993.80 ",Information Management Services,Large,Programme Expenditure
UK Statistics Family,Office for National Statistics,26/01/2021,Exp - Purchase Of Goods/Services - Contractors,Covid Infection Survey,Parity Resources Limited,195002," 5,589.85 ",Information Management Services,Large,Programme Expenditure
UK Statistics Family,Office for National Statistics,26/01/2021,Exp - Purchase Of Goods/Services - Contractors,Covid Infection Survey,Parity Resources Limited,195002," 2,207.00 ",Information Management Services,Large,Programme Expenditure
UK Statistics Family,Office for National Statistics,26/01/2021,Exp - Purchase Of Goods/Services - Contractors,Digital Publishing,Parity Resources Limited,195002," 14,400.00 ",Information Management Services,Large,Programme Expenditure
UK Statistics Family,Office for National Statistics,26/01/2021,Exp - Purchase Of Goods/Services - Contractors,Analysis Microdata And Engagement,Parity Resources Limited,195002," 1,317.00 ",Information Management Services,Large,Programme Expenditure
UK Statistics Family,Office for National Statistics,26/01/2021,Exp - Short-Term Contract & Agency Staff - Full Cost,Business Architecture Transformation And Statistical Strategy,Parity Resources Limited,195002, 732.60 ,Information Management Services,Large,Programme Expenditure
UK Statistics Family,Office for National Statistics,26/01/2021,Exp - Purchase Of Goods/Services - Contractors,Researcher Support And Data Access ,Parity Resources Limited,195002," 3,008.22 ",Information Management Services,Large,Programme Expenditure
UK Statistics Family,Office for National Statistics,26/01/2021,Exp - Short-Term Contract & Agency Staff - Full Cost,Recruitment ,Parity Resources Limited,195002," 1,807.52 ",Information Management Services,Large,Programme Expenditure
UK Statistics Family,Office for National Statistics,26/01/2021,Exp - Short-Term Contract & Agency Staff - Full Cost,Recruitment ,Parity Resources Limited,195002," 2,197.80 ",Information Management Services,Large,Programme Expenditure
UK Statistics Family,Office for National Statistics,26/01/2021,Exp - Purchase Of Goods/Services - Contractors,Security Advisory,Parity Resources Limited,195002," 28,195.20 ",Information Management Services,Large,Programme Expenditure
UK Statistics Family,Office for National Statistics,26/01/2021,Exp - Short-Term Contract & Agency Staff - Full Cost,Data Architecture,Parity Resources Limited,195002, 732.60 ,Information Management Services,Large,Programme Expenditure
UK Statistics Family,Office for National Statistics,26/01/2021,Exp - Purchase Of Goods/Services - Contractors,Data Architecture,Parity Resources Limited,195002," 7,005.06 ",Information Management Services,Large,Programme Expenditure
UK Statistics Family,Office for National Statistics,26/01/2021,Exp - Purchase Of Goods/Services - Contractors,IT Applications,Parity Resources Limited,195002," 27,554.52 ",Information Management Services,Large,Programme Expenditure
UK Statistics Family,Office for National Statistics,26/01/2021,Exp - Short-Term Contract & Agency Staff - Full Cost,Digital Delivery,Parity Resources Limited,195002, 637.20 ,Information Management Services,Large,Programme Expenditure
UK Statistics Family,Office for National Statistics,26/01/2021,Exp - Purchase Of Goods/Services - Contractors,Digital Delivery,Parity Resources Limited,195002," 14,353.92 ",Information Management Services,Large,Programme Expenditure
UK Statistics Family,Office for National Statistics,26/01/2021,Exp - Purchase Of Goods/Services - Contractors,Digital Delivery,Parity Resources Limited,195002," 10,765.44 ",Information Management Services,Large,Programme Expenditure
UK Statistics Family,Office for National Statistics,26/01/2021,Exp - Purchase Of Goods/Services - Contractors,Digital Delivery,Parity Resources Limited,195002," 10,765.44 ",Information Management Services,Large,Programme Expenditure
UK Statistics Family,Office for National Statistics,26/01/2021,Exp - Purchase Of Goods/Services - Contractors,Digital Delivery,Parity Resources Limited,195002," 14,353.92 ",Information Management Services,Large,Programme Expenditure
UK Statistics Family,Office for National Statistics,26/01/2021,Exp - Purchase Of Goods/Services - IT Contractual Services,Digital Delivery,Parity Resources Limited,195002," 11,534.40 ",Information Management Services,Large,Programme Expenditure
UK Statistics Family,Office for National Statistics,26/01/2021,Exp - Purchase Of Goods/Services - Contractors,Data As A Service,Parity Resources Limited,195002," 14,353.92 ",Information Management Services,Large,Programme Expenditure
UK Statistics Family,Office for National Statistics,26/01/2021,Exp - Short-Term Contract & Agency Staff - Full Cost,Social Survey Transformation Titchfield,Parity Resources Limited,195002, 785.88 ,Information Management Services,Large,Programme Expenditure
UK Statistics Family,Office for National Statistics,26/01/2021,Exp - Purchase Of Goods/Services - Contractors,Business Architecture,LA FOSSE ASSOCIATES LIMITED,195003," 25,630.00 ",Information Management Services,Large,Programme Expenditure
UK Statistics Family,Office for National Statistics,26/01/2021,Exp - Purchase Of Goods/Services - Contractors,Business Architecture,LA FOSSE ASSOCIATES LIMITED,195003," 2,750.00 ",Information Management Services,Large,Programme Expenditure
UK Statistics Family,Office for National Statistics,26/01/2021,Exp - Purchase Of Goods/Services - Contractors,Consultancy Management,LA FOSSE ASSOCIATES LIMITED,195003," 30,104.94 ",Information Management Services,Large,Programme Expenditure
UK Statistics Family,Office for National Statistics,26/01/2021,Exp - Purchase Of Goods/Services - Contractors,Programme Support,LA FOSSE ASSOCIATES LIMITED,195003," 3,000.00 ",Information Management Services,Large,Programme Expenditure
UK Statistics Family,Office for National Statistics,26/01/2021,Exp - Purchase Of Goods/Services - Contractors,Data Architecture,LA FOSSE ASSOCIATES LIMITED,195003," 4,050.00 ",Information Management Services,Large,Programme Expenditure
UK Statistics Family,Office for National Statistics,26/01/2021,Exp - Purchase Of Goods/Services - Contractors,Tech Delivery Legacy Sp,LA FOSSE ASSOCIATES LIMITED,195003," 3,600.00 ",Information Management Services,Large,Programme Expenditure
UK Statistics Family,Office for National Statistics,26/01/2021,Exp - Purchase Of Goods/Services - Contractors,Business Statistics Transformation,LA FOSSE ASSOCIATES LIMITED,195003," 3,300.00 ",Information Management Services,Large,Programme Expenditure
UK Statistics Family,Office for National Statistics,26/01/2021,Other Goods And Services,Security Advisory,Bridewell Consulting Limited,195005," 52,800.00 ",Consultancy,SME,Programme Expenditure
UK Statistics Family,Office for National Statistics,27/01/2021,Exp - Purchase Of Goods/Services - IT Contractual Services,Expansion Programme,Kainos,195009," 200,628.20 ",Information Management Services,Large,Programme Expenditure
UK Statistics Family,Office for National Statistics,27/01/2021,Capitalised Specialist Contractors IT,Tech Delivery Data As A Platform,Kainos,195009," 38,682.76 ",Information Management Services,Large,Programme Expenditure
UK Statistics Family,Office for National Statistics,27/01/2021,Exp - Purchase Of Goods/Services - IT Contractual Services,Tech Delivery Data As A Platform,Kainos,195009," 20,407.24 ",Information Management Services,Large,Programme Expenditure
UK Statistics Family,Office for National Statistics,27/01/2021,Exp - Purchase Of Goods/Services - Contractors,Tech Delivery Legacy Sp,Certes Computing Ltd,195021," 5,226.53 ",Information Management Services,SME,Programme Expenditure
UK Statistics Family,Office for National Statistics,27/01/2021,Exp - Purchase Of Goods/Services - Contractors,Tech Delivery Data As A Platform,Certes Computing Ltd,195021," 10,408.16 ",Information Management Services,SME,Programme Expenditure
UK Statistics Family,Office for National Statistics,27/01/2021,Exp - Purchase Of Goods/Services - Contractors,Tech Delivery Data As A Platform,Certes Computing Ltd,195021," 12,598.74 ",Information Management Services,SME,Programme Expenditure
UK Statistics Family,Office for National Statistics,27/01/2021,EXP - PURCHASE OF GOODS/SERVICES -  NON IT CONTRACTUAL PAYMENTS,Data Collection Service,HH Associates Ltd,195033," 415,578.99 ",Print and Post Services,SME,Programme Expenditure
UK Statistics Family,Office for National Statistics,27/01/2021,EXP - PURCHASE OF GOODS/SERVICES -  NON IT CONTRACTUAL PAYMENTS,Covid Infection Survey,HH Associates Ltd,195033," 120,118.36 ",Print and Post Services,SME,Programme Expenditure
UK Statistics Family,Office for National Statistics,27/01/2021,Surveys,Crime Statistics,Kantar UK Ltd,195036," 241,532.40 ",Statistical Services,Large,Programme Expenditure
UK Statistics Family,Office for National Statistics,27/01/2021,Telecoms,Census CCS Data Collection,Cdw Limited,195042," 11,841.68 ",Software Licenses,Large,Programme Expenditure
UK Statistics Family,Office for National Statistics,27/01/2021,Telecoms,Expansion Programme,Cdw Limited,195042, 697.20 ,Software Licenses,Large,Programme Expenditure
UK Statistics Family,Office for National Statistics,27/01/2021,Telecoms,IT Operations,Cdw Limited,195042," 34,688.14 ",Software Licenses,Large,Programme Expenditure
UK Statistics Family,Office for National Statistics,06/01/2021,Surveys,Covid Infection Survey,IQVIA Limited,30002443," 27,601,389.60 ",Statistical Services,Large,Programme Expenditure
UK Statistics Family,Office for National Statistics,06/01/2021,Surveys,Covid Infection Survey,IQVIA Limited,30002444," 16,928,337.60 ",Statistical Services,Large,Programme Expenditure
UK Statistics Family,Office for National Statistics,06/01/2021,Exp - Purchase Of Goods/Services - Incentive Payments,Covid Infection Survey,Sodexo Motivation Solutions U.K. ltd,30002446," 70,931.20 ",Survey Response Incentive Vouchers,Large,Programme Expenditure
UK Statistics Family,Office for National Statistics,06/01/2021,Exp - Purchase Of Goods/Services - Incentive Payments,Covid Infection Survey,Sodexo Motivation Solutions U.K. ltd,30002447," 36,542.00 ",Survey Response Incentive Vouchers,Large,Programme Expenditure
UK Statistics Family,Office for National Statistics,06/01/2021,Exp - Purchase Of Goods/Services - Incentive Payments,Covid Infection Survey,Sodexo Motivation Solutions U.K. ltd,30002448," 2,191,393.04 ",Survey Response Incentive Vouchers,Large,Programme Expenditure
UK Statistics Family,Office for National Statistics,07/01/2021,Exp - Purchase Of Goods/Services - Incentive Payments,Covid Infection Survey,Sodexo Motivation Solutions U.K. ltd,30002454," 892,127.12 ",Survey Response Incentive Vouchers,Large,Programme Expenditure
UK Statistics Family,Office for National Statistics,08/01/2021,Other Goods And Services,ONS Corporate Funds,Edenred (UK Group) Limited,30002455," 45,050.00 ",Performance Reward Vouchers,Large,Programme Expenditure
UK Statistics Family,Office for National Statistics,15/01/2021,PAYE,Census Payroll,HM Revenue & Customs,30002459," 214,667.11 ",PAYE due,Large,Programme Expenditure
UK Statistics Family,Office for National Statistics,15/01/2021,Exp - Purchase Of Goods/Services - Incentive Payments,Covid Infection Survey,Sodexo Motivation Solutions U.K. ltd,30002460," 1,938,479.72 ",Survey Response Incentive Vouchers,Large,Programme Expenditure
UK Statistics Family,Office for National Statistics,15/01/2021,Exp - Purchase Of Goods/Services - Incentive Payments,Covid Infection Survey,Sodexo Motivation Solutions U.K. ltd,30002461," 71,928.00 ",Survey Response Incentive Vouchers,Large,Programme Expenditure
UK Statistics Family,Office for National Statistics,20/01/2021,Exp - Purchase Of Goods/Services - Incentive Payments,Covid Infection Survey,Sodexo Motivation Solutions U.K. ltd,30002463," 28,641.29 ",Survey Response Incentive Vouchers,Large,Programme Expenditure
UK Statistics Family,Office for National Statistics,20/01/2021,Electricity,Property Newport,Edf Energy,30002464," 25,875.98 ",Site Utilities,Large,Programme Expenditure
UK Statistics Family,Office for National Statistics,22/01/2021,Exp - Purchase Of Goods/Services - Incentive Payments,Covid Infection Survey,Sodexo Motivation Solutions U.K. ltd,30002467," 168,174.24 ",Survey Response Incentive Vouchers,Large,Programme Expenditure
UK Statistics Family,Office for National Statistics,28/01/2021,Exp - Purchase Of Goods/Services - Incentive Payments,Covid Infection Survey,Sodexo Motivation Solutions U.K. ltd,30002476," 2,569,589.72 ",Survey Response Incentive Vouchers,Large,Programme Expenditure
UK Statistics Family,Office for National Statistics,29/01/2021,Exp - Purchase Of Goods/Services - IT Contractual Services,CDIO UNGP,Bloom Procurement Services Ltd,30002477," 45,441.67 ",Consultancy,Large,Programme Expenditure
UK Statistics Family,Office for National Statistics,29/01/2021,Exp - Purchase Of Goods/Services - Incentive Payments,Covid Infection Survey,Sodexo Motivation Solutions U.K. ltd,30002478," 74,205.46 ",Survey Response Incentive Vouchers,Large,Programme Expenditure
UK Statistics Family,Office for National Statistics,29/01/2021,Exp - Purchase Of Goods/Services - Incentive Payments,Covid Infection Survey,Sodexo Motivation Solutions U.K. ltd,30002479," 64,492.42 ",Survey Response Incentive Vouchers,Large,Programme Expenditure
UK Statistics Family,Office for National Statistics,29/01/2021,Exp - Purchase Of Goods/Services - Incentive Payments,Covid Infection Survey,Sodexo Motivation Solutions U.K. ltd,30002480," 52,416.00 ",Survey Response Incentive Vouchers,Large,Programme Expenditure
UK Statistics Family,Office for National Statistics,29/01/2021,"ICT Outsourcing, Maintenance And Support",Senior Management Team Design,Totalmobile Ltd,30002481," 136,960.80 ",Information Management Services,SME,Programme Expenditure
UK Statistics Family,Office for National Statistics,29/01/2021,"ICT Outsourcing, Maintenance And Support",Consultancy Management,Totalmobile Ltd,30002481," 34,560.00 ",Information Management Services,SME,Programme Expenditure
UK Statistics Family,Office for National Statistics,29/01/2021,Surveys,Labour Market,University of Durham,30002482," 134,437.61 ",Statistical Services,Large,Programme Expenditure
UK Statistics Family,Office for National Statistics,29/01/2021,Exp - Purchase Of Goods And Services Consultants,Consultancy Management,Bloom Procurement Services Ltd,30002483," 209,015.28 ",Consultancy,Large,Programme Expenditure
UK Statistics Family,Office for National Statistics,29/01/2021,Exp - Purchase Of Goods/Services - IT Contractual Services,CDIO UNGP,Bloom Procurement Services Ltd,30002484," 128,237.94 ",Consultancy,Large,Programme Expenditure
UK Statistics Family,Office for National Statistics,29/01/2021,Exp - Purchase Of Goods And Services Consultants,Digital Delivery,Xma Limited,30002485," 7,716.00 ",Leasing of Devices,Large,Programme Expenditure
UK Statistics Family,Office for National Statistics,29/01/2021,Postage,Digital Delivery,Xma Limited,30002485," 27,606.00 ",Leasing of Devices,Large,Programme Expenditure
UK Statistics Family,Office for National Statistics,29/01/2021,Exp - Purchase Of Goods/Services - IT Contractual Services,Digital Delivery,Xma Limited,30002485," 113,710.80 ",Leasing of Devices,Large,Programme Expenditure
UK Statistics Family,Office for National Statistics,29/01/2021,"ICT Outsourcing, Maintenance And Support",Security Operations,Scc,30002488," 36,988.00 ",Information Management Services,Large,Programme Expenditure
UK Statistics Family,Office for National Statistics,29/01/2021,Exp - Purchase Of Goods/Services - Other ICT Costs Software,Finance,Scc,30002489," 154,286.88 ",Software Licenses,Large,Programme Expenditure
UK Statistics Family,Office for National Statistics,29/01/2021,Exp - Purchase Of Goods/Services - IT Contractual Services,Digital Publishing,Swirrl It Ltd,30002490," 81,552.00 ",Information Management Services,SME,Programme Expenditure
UK Statistics Family,Office for National Statistics,29/01/2021,Exp - Purchase Of Goods/Services - IT Contractual Services,Digital Publishing,Swirrl It Ltd,30002491," 72,213.60 ",Information Management Services,SME,Programme Expenditure
UK Statistics Family,Office for National Statistics,29/01/2021,"ICT Outsourcing, Maintenance And Support",Divisional Strategy And Support,Vanguard Cymru,30002492," 42,000.00 ",Training and Educational Services,SME,Programme Expenditure
UK Statistics Family,Office for National Statistics,29/01/2021,Plant & Machinery At Cost - Additions,Property Services,Canon UK Ltd,30002493," 82,929.60 ",Reprographic Equipment,Large,Programme Expenditure
,,,,,,Report Total,"68,774,293.01",,,
